Analysed Amount,Supplier,3CCN - Level 3 Cost Centre Name,5CCN - Level 5 Cost Centre Name,9CCN - Level 9 Cost Centre Name,9CCC - Level 9 Cost Centre Code,9AN - Level 9 Account Name,Date Paid,5AN - Level 5 Account Name,Transaction Reference,3CCN - Level 3 Cost Centre Name,Dept
6662164.5,Nottinghamshire County Council,Collection Fund,Precepting Authorities,Notts County Council,5930,Precept Paid,31/01/2018,Collection Fund Accounts,74460,Collection Fund,FINANCE & CORPORATE SERVICES
6662164.5,Nottinghamshire County Council,Collection Fund,Precepting Authorities,Notts County Council,5930,Precept Paid,07/03/2018,Collection Fund Accounts,74463,Collection Fund,FINANCE & CORPORATE SERVICES
768012,Notts Police & Crime Commissioner,Collection Fund,Precepting Authorities,Police Authority,5932,Precept Paid,31/01/2018,Collection Fund Accounts,74461,Collection Fund,FINANCE & CORPORATE SERVICES
768010.34,Notts Police & Crime Commissioner,Collection Fund,Precepting Authorities,Police Authority,5932,Precept Paid,07/03/2018,Collection Fund Accounts,74464,Collection Fund,FINANCE & CORPORATE SERVICES
339354,Notts Fire And Rescue Service,Collection Fund,Precepting Authorities,Fire Authority,5933,Precept Paid,31/01/2018,Collection Fund Accounts,74462,Collection Fund,FINANCE & CORPORATE SERVICES
339354,Notts Fire And Rescue Service,Collection Fund,Precepting Authorities,Fire Authority,5933,Precept Paid,07/03/2018,Collection Fund Accounts,74465,Collection Fund,FINANCE & CORPORATE SERVICES
264268,A&S Enterprises Limited,Capital Expenditure,Transformation & Innovation,Cotgrave Masterplan,303,Legal & Professional Services,31/01/2018,Supplies & Services,82706,Capital Expenditure,CAPITAL
185378,A&S Enterprises Limited,Capital Expenditure,Transformation & Innovation,Cotgrave Masterplan,303,Legal & Professional Services,11/01/2018,Supplies & Services,82126,Capital Expenditure,CAPITAL
148000,A&S Enterprises Limited,Capital Expenditure,Transformation & Innovation,Cotgrave Masterplan,303,Legal & Professional Services,15/03/2018,Supplies & Services,83758,Capital Expenditure,CAPITAL
126852.52,Streetwise Environmental Ltd,Neighbourhoods,Waste & Fleet Management,Streetwise Contract,8301,Contractors-Third Party,25/01/2018,Third Party Payments,82428,Neighbourhoods,NEIGHBOURHOODS
126852.52,Streetwise Environmental Ltd,Neighbourhoods,Waste & Fleet Management,Streetwise Contract,8301,Contractors-Third Party,23/02/2018,Third Party Payments,83395,Neighbourhoods,NEIGHBOURHOODS
126852.52,Streetwise Environmental Ltd,Neighbourhoods,Waste & Fleet Management,Streetwise Contract,8301,Contractors-Third Party,27/03/2018,Third Party Payments,84167,Neighbourhoods,NEIGHBOURHOODS
115863.69,Parkwood Community Leisure,Neighbourhoods,Leisure Contracts & Car Parks,Leisure Management Contract,1795,Parkwood Contract,11/01/2018,Third Party Payments,79072,Neighbourhoods,FINANCE & CORPORATE SERVICES
101916.93,Fosse Medicare Ltd,Capital Expenditure,Transformation & Innovation,Cotgrave Masterplan,303,Legal & Professional Services,16/02/2018,Supplies & Services,83230,Capital Expenditure,CAPITAL
98294.68,Via East Midlands,Liabilities,Long Term Liabilities,Arena 14/01290/Ful Transport,6756,Balance Sheet Exp In The Year,19/01/2018,Balance Sheet Exp In The Year,82490,Liabilities,FINANCE & CORPORATE SERVICES
97865.72,Parkwood Community Leisure,Neighbourhoods,Leisure Contracts & Car Parks,Leisure Management Contract,1795,Parkwood Contract,11/01/2018,Third Party Payments,80938,Neighbourhoods,FINANCE & CORPORATE SERVICES
79928,Fosse Medicare Ltd,Capital Expenditure,Transformation & Innovation,Cotgrave Masterplan,303,Legal & Professional Services,31/01/2018,Supplies & Services,82693,Capital Expenditure,CAPITAL
69246.86,Nottinghamshire County Council,Liabilities,Long Term Liabilities,Raf New. Bus Ser. Pro 06/01226,6337,Balance Sheet Exp In The Year,23/02/2018,Balance Sheet Exp In The Year,83242,Liabilities,COMMUNITIES
58804.31,Fosse Medicare Ltd,Capital Expenditure,Transformation & Innovation,Cotgrave Masterplan,303,Legal & Professional Services,15/03/2018,Supplies & Services,83985,Capital Expenditure,CAPITAL
58503.61,Fosse Medicare Ltd,Capital Expenditure,Transformation & Innovation,Cotgrave Masterplan,303,Legal & Professional Services,25/01/2018,Supplies & Services,82614,Capital Expenditure,CAPITAL
41507.89,Horizon Landscapes Ltd,Capital Expenditure,Communties,Rcp - Car Park Improvements,316,Contractors-Third Party,27/03/2018,Third Party Payments,84241,Capital Expenditure,CAPITAL
40614.74,Nottinghamshire County Council,Neighbourhoods,Leisure Contracts & Car Parks,East Leake Leisure Centre,1700,Olas - Notts County Council,19/01/2018,Third Party Payments,81433,Neighbourhoods,FINANCE & CORPORATE SERVICES
40614.74,Nottinghamshire County Council,Neighbourhoods,Leisure Contracts & Car Parks,East Leake Leisure Centre,1700,Olas - Notts County Council,19/01/2018,Third Party Payments,82302,Neighbourhoods,FINANCE & CORPORATE SERVICES
40614.74,Nottinghamshire County Council,Neighbourhoods,Leisure Contracts & Car Parks,East Leake Leisure Centre,1700,Olas - Notts County Council,23/02/2018,Third Party Payments,83152,Neighbourhoods,FINANCE & CORPORATE SERVICES
38131.78,Nottingham City Council,Neighbourhoods,Waste & Fleet Management,Garage,8700,Contractors-Transport,27/03/2018,Transport Related Expenditure,84214,Neighbourhoods,NEIGHBOURHOODS
35303.35,Nottingham City Council,Neighbourhoods,Waste & Fleet Management,Garage,8700,Contractors-Transport,16/02/2018,Transport Related Expenditure,82809,Neighbourhoods,NEIGHBOURHOODS
31200,Nottingham City Council,Finance & Corporate Services,Emt & Transformation,Executive Management Team,4721,O.L.A Staff,05/01/2018,Employee Related Expenditure,81953,Finance & Corporate Services,FINANCE & CORPORATE SERVICES
23493.85,Turner & Townsend Cost Managment Ltd,Capital Expenditure,Neighbourhoods,Arena Development,415,Legal & Professional Services,09/02/2018,Supplies & Services,82720,Capital Expenditure,CAPITAL
22768.69,Certas Energy T/A Pace Fuelcare,Neighbourhoods,Waste & Fleet Management,Fleet,8600,Diesel,25/01/2018,Transport Related Expenditure,82416,Neighbourhoods,NEIGHBOURHOODS
22558.4,Certas Energy T/A Pace Fuelcare,Neighbourhoods,Waste & Fleet Management,Fleet,8600,Diesel,16/02/2018,Transport Related Expenditure,82947,Neighbourhoods,NEIGHBOURHOODS
21967.86,Certas Energy T/A Pace Fuelcare,Neighbourhoods,Waste & Fleet Management,Fleet,8600,Diesel,27/03/2018,Transport Related Expenditure,84165,Neighbourhoods,NEIGHBOURHOODS
21817.61,Certas Energy T/A Pace Fuelcare,Neighbourhoods,Waste & Fleet Management,Fleet,8600,Diesel,15/03/2018,Transport Related Expenditure,83633,Neighbourhoods,NEIGHBOURHOODS
21430.2,Certas Energy T/A Pace Fuelcare,Neighbourhoods,Waste & Fleet Management,Fleet,8600,Diesel,11/01/2018,Transport Related Expenditure,82035,Neighbourhoods,NEIGHBOURHOODS
19798,Gedling Borough Council,Finance & Corporate Services,Financial Services,Financial Services,4705,Contractors-Supplies & Servs,27/03/2018,Supplies & Services,84205,Finance & Corporate Services,FINANCE & CORPORATE SERVICES
18098.52,Dsi Billing Ltd,Transformation,Bsu,Central Mail,4871,Postages,27/03/2018,Supplies & Services,84164,Transformation,TRANSFORMATION
17054.16,Nottingham City Council,Neighbourhoods,Waste & Fleet Management,Garage,8700,Contractors-Transport,27/03/2018,Transport Related Expenditure,84028,Neighbourhoods,NEIGHBOURHOODS
17000,Harmony Bridge,Transformation,Property Services,Civic Buildings - Landlord,4791,Rents,27/03/2018,Income,84207,Transformation,TRANSFORMATION
15500,Rsm,Finance & Corporate Services,Financial Services,Internal Audit,4708,Legal & Professional Services,06/03/2018,Supplies & Services,83492,Finance & Corporate Services,FINANCE & CORPORATE SERVICES
14677.85,Toot Hill School,Neighbourhoods,Leisure Contracts & Car Parks,Leisure Management Contract,1795,Electricity,07/02/2018,Premises Related Expenditure,82433,Neighbourhoods,FINANCE & CORPORATE SERVICES
13304,Netcall Telecom Limited,Transformation,Ict,It Rechargeable Costs,4722,Maintenance Contracts - S&S,01/03/2018,Supplies & Services,83139,Transformation,TRANSFORMATION
13260,Craemer Uk Ltd,Capital Expenditure,Neighbourhoods,Wheeled Bins,310,Other Equipment/Materials,21/03/2018,Supplies & Services,83937,Capital Expenditure,CAPITAL
13260,Craemer Uk Ltd,Capital Expenditure,Neighbourhoods,Wheeled Bins,310,Other Equipment/Materials,27/03/2018,Supplies & Services,83955,Capital Expenditure,CAPITAL
13190.6,Nottingham City Council,Neighbourhoods,Waste & Fleet Management,Garage,8700,Contractors-Transport,06/03/2018,Transport Related Expenditure,83396,Neighbourhoods,NEIGHBOURHOODS
12456,Axess Systems Ltd,Transformation,Ict,It Rechargeable Costs,4722,Maintenance Contracts - S&S,21/03/2018,Supplies & Services,84145,Transformation,TRANSFORMATION
12423.63,Nottingham City Council,Neighbourhoods,Waste & Fleet Management,Garage,8700,Contractors-Transport,11/01/2018,Transport Related Expenditure,82156,Neighbourhoods,NEIGHBOURHOODS
11338.79,Objective Keystone Ltd,Transformation,Ict,It Rechargeable Costs,4722,Maintenance Contracts - S&S,01/03/2018,Supplies & Services,83203,Transformation,TRANSFORMATION
10963.87,East Leake Parish Council,Transformation,Property Services,Parish Run Pub Conveniences,1072,Grants,31/01/2018,Supplies & Services,81809,Transformation,TRANSFORMATION
10322,Kpmg Llp,Finance & Corporate Services,Financial Services,Corporate Management,4895,External Audit Fee,11/01/2018,Supplies & Services,81818,Finance & Corporate Services,FINANCE & CORPORATE SERVICES
10322,Kpmg Llp,Finance & Corporate Services,Financial Services,Corporate Management,4895,External Audit Fee,27/03/2018,Supplies & Services,84337,Finance & Corporate Services,FINANCE & CORPORATE SERVICES
9725.1,Broxtowe Borough Council,Neighbourhoods,Strategic Housing,Choice Based Lettings,1107,Partnership Workings,15/03/2018,Supplies & Services,83637,Neighbourhoods,NEIGHBOURHOODS
8925,Advanced Business Solutions,Transformation,Ict,It Rechargeable Costs,4722,Software,27/03/2018,Supplies & Services,83725,Transformation,TRANSFORMATION
8675,Acorn Windows (Nottingham) Limited,Capital Expenditure,Neighbourhoods,Hound Lodge Enhancements,308,Contractors-Third Party,12/02/2018,Third Party Payments,63447,Capital Expenditure,CAPITAL
8430,"Urbed (Urbanism, Environment And Design) Ltd",Transformation,Economic Regeneration,Economic Development,1887,Other Services,16/02/2018,Supplies & Services,82828,Transformation,TRANSFORMATION
8352.3,Opus International Consultants (Uk) Ltd,Capital Expenditure,Transformation & Innovation,New Depot,312,Legal & Professional Services,11/01/2018,Supplies & Services,80773,Capital Expenditure,CAPITAL
8333.33,Ngi Uk Limited,Transformation,Economic Regeneration,Economic Development,1887,Other Services,06/03/2018,Supplies & Services,83722,Transformation,TRANSFORMATION
8000,Ndj Ltd T/A Belton Construction,Capital Expenditure,Neighbourhoods,Disabled Facilities Grant,332,Grants,09/02/2018,Supplies & Services,82821,Capital Expenditure,CAPITAL
8000,T&S Heating Ltd,Capital Expenditure,Neighbourhoods,Disabled Facilities Grant,332,Grants,23/02/2018,Supplies & Services,83422,Capital Expenditure,CAPITAL
8000,Dta Electrical,Capital Expenditure,Neighbourhoods,Egc Upgrade Facilites,420,Contractors-Third Party,15/03/2018,Third Party Payments,83970,Capital Expenditure,CAPITAL
7800,Nottingham City Council,Transformation,Human Resources,Corporate Training,4893,Training Expenses,11/01/2018,Employee Related Expenditure,82195,Transformation,TRANSFORMATION
7690,Egbert H Taylor & Co Ltd,Neighbourhoods,Waste & Fleet Management,Glass Recycling & Bring Sites,8407,Other Equipment/Materials,12/02/2018,Supplies & Services,82679,Neighbourhoods,NEIGHBOURHOODS
7610.53,Nottinghamshire County Council,Finance & Corporate Services,Financial Services,Pensions Increase Act,4889,Pension Increase Act Payments,21/03/2018,Employee Related Expenditure,84027,Finance & Corporate Services,FINANCE & CORPORATE SERVICES
7517.19,Microgen Solutions Plc,Transformation,Ict,It Rechargeable Costs,4722,Maintenance Contracts - S&S,15/03/2018,Supplies & Services,83598,Transformation,TRANSFORMATION
7332.62,Toot Hill School,Neighbourhoods,Leisure Contracts & Car Parks,Leisure Management Contract,1795,Electricity,15/03/2018,Premises Related Expenditure,82899,Neighbourhoods,FINANCE & CORPORATE SERVICES
7330.27,Toot Hill School,Neighbourhoods,Leisure Contracts & Car Parks,Leisure Management Contract,1795,Electricity,15/03/2018,Premises Related Expenditure,82925,Neighbourhoods,FINANCE & CORPORATE SERVICES
7000,Nottinghamshire County Council,Neighbourhoods,Environmental Health,Anti Social Behaviour,1125,O.L.A Staff,29/03/2018,Employee Related Expenditure,83952,Neighbourhoods,NEIGHBOURHOODS
7000,Wireless Cctv Ltd,Neighbourhoods,Environmental Health,Community Safety,1598,Projects & Activities,08/01/2018,Supplies & Services,81982,Neighbourhoods,NEIGHBOURHOODS
6912,Browne Jacobson,Transformation,Property Services,Land Holdings,1884,Legal & Professional Services,07/02/2018,Supplies & Services,82145,Transformation,TRANSFORMATION
6682,Via East Midlands,Communities,Local Development Framework,Land Charges,1033,Other Services,27/03/2018,Supplies & Services,82718,Communities,COMMUNITIES
6225,"Urbed (Urbanism, Environment And Design) Ltd",Transformation,Economic Regeneration,Economic Development,1887,Other Services,27/03/2018,Supplies & Services,83918,Transformation,TRANSFORMATION
6186.23,Parkwood Community Leisure,Transformation,Property Services,Arena Civic Centre,4718,Electricity,09/02/2018,Premises Related Expenditure,74268,Transformation,TRANSFORMATION
6040.33,T&S Heating Ltd,Capital Expenditure,Neighbourhoods,Discretionary Top-Ups Dfgs,333,Grants,19/01/2018,Supplies & Services,82369,Capital Expenditure,CAPITAL
5895,Alfred Bagnall & Sons (East Midlands) Ltd,Communities,Community Development,Sir Julien Cahn Pavilion,8993,Planned Maintenance Recharge,11/01/2018,Supplies & Services,80414,Communities,COMMUNITIES
5894,Trent Valley Plumbing & Build,Capital Expenditure,Neighbourhoods,Disabled Facilities Grant,332,Grants,19/01/2018,Supplies & Services,82371,Capital Expenditure,CAPITAL
5800,East Leake Parish Council,Communities,Community Development,Environmental Promotion,1590,Legal & Professional Services,27/03/2018,Supplies & Services,84364,Communities,COMMUNITIES
5640.74,Virgin Media Business,Capital Expenditure,Neighbourhoods,Arena Development,415,Computer Hardware,05/01/2018,Supplies & Services,81307,Capital Expenditure,CAPITAL
5630,Apw (Nottm) Ltd,Capital Expenditure,Neighbourhoods,Disabled Facilities Grant,332,Grants,19/01/2018,Supplies & Services,82189,Capital Expenditure,CAPITAL
5527.86,Tunstall Response Ltd,Neighbourhoods,Strategic Housing,Home Alarms,1137,Other Services,15/03/2018,Supplies & Services,83591,Neighbourhoods,NEIGHBOURHOODS
5520,Nottingham City Council,Neighbourhoods,Waste & Fleet Management,Waste Collection,8403,Training Expenses,31/01/2018,Employee Related Expenditure,82326,Neighbourhoods,NEIGHBOURHOODS
5442.7,Parkwood Community Leisure,Neighbourhoods,Leisure Contracts & Car Parks,Leisure Management Contract,1795,Parkwood Contract,23/02/2018,Third Party Payments,82038,Neighbourhoods,FINANCE & CORPORATE SERVICES
5421.66,Royal Mail Group Ltd,Transformation,Bsu,Central Mail,4871,Postages,23/02/2018,Supplies & Services,83047,Transformation,TRANSFORMATION
5280,Fixfire,Communities,Community Development,Lutterell Hall,8990,Planned Maintenance Recharge,27/03/2018,Supplies & Services,84061,Communities,COMMUNITIES
5270,Rsm,Finance & Corporate Services,Financial Services,Internal Audit,4708,Legal & Professional Services,23/02/2018,Supplies & Services,81104,Finance & Corporate Services,FINANCE & CORPORATE SERVICES
5260.61,Parkwood Community Leisure,Neighbourhoods,Leisure Contracts & Car Parks,Leisure Management Contract,1795,Parkwood Contract,07/02/2018,Third Party Payments,82559,Neighbourhoods,FINANCE & CORPORATE SERVICES
5260.61,Parkwood Community Leisure,Neighbourhoods,Leisure Contracts & Car Parks,Leisure Management Contract,1795,Parkwood Contract,27/03/2018,Third Party Payments,84248,Neighbourhoods,FINANCE & CORPORATE SERVICES
5260.61,Parkwood Leisure Ltd,Neighbourhoods,Leisure Contracts & Car Parks,Leisure Management Contract,1795,Parkwood Contract,23/02/2018,Third Party Payments,83408,Neighbourhoods,FINANCE & CORPORATE SERVICES
5244.6,Knight Kavanagh And Page Ltd,Capital Expenditure,Neighbourhoods,Blc Enhancements,417,Legal & Professional Services,09/02/2018,Supplies & Services,82835,Capital Expenditure,CAPITAL
5212.15,Toot Hill School,Neighbourhoods,Leisure Contracts & Car Parks,Leisure Management Contract,1795,Gas,15/03/2018,Premises Related Expenditure,82925,Neighbourhoods,FINANCE & CORPORATE SERVICES
5150,Cipfa Business Limited,Finance & Corporate Services,Financial Services,Financial Services,4705,Subscriptions,27/03/2018,Supplies & Services,84234,Finance & Corporate Services,FINANCE & CORPORATE SERVICES
5140,Opus International Consultants (Uk) Ltd,Capital Expenditure,Transformation & Innovation,New Depot,312,Legal & Professional Services,31/01/2018,Supplies & Services,81605,Capital Expenditure,CAPITAL
5131.5,Lodge Tyre Co.Ltd,Neighbourhoods,Waste & Fleet Management,Waste Collection,8403,Tyres,11/01/2018,Transport Related Expenditure,82121,Neighbourhoods,NEIGHBOURHOODS
5073.24,Intelligent Plans & Examinations (Ipe) Ltd,Communities,Local Development Framework,Development Plans,1232,Legal & Professional Services,07/03/2018,Supplies & Services,83441,Communities,COMMUNITIES
5051.25,The South Wolds Academy And Sixth Form,Neighbourhoods,Leisure Contracts & Car Parks,Leisure Management Contract,1795,Parkwood Contract,07/03/2018,Third Party Payments,82425,Neighbourhoods,FINANCE & CORPORATE SERVICES
5000,Zurich Municipal,Finance & Corporate Services,Financial Services,Main Premiums,4920,Employee Insurances,27/03/2018,Employee Related Expenditure,84327,Finance & Corporate Services,FINANCE & CORPORATE SERVICES
5000,Zurich Municipal,Finance & Corporate Services,Financial Services,Main Premiums,4920,Miscellaneous Insurances,27/03/2018,Supplies & Services,84327,Finance & Corporate Services,FINANCE & CORPORATE SERVICES
5000,Richard Watkinson & Partners,Transformation,Economic Regeneration,Economic Development,1887,Grants,07/02/2018,Supplies & Services,82558,Transformation,TRANSFORMATION
4945,Newton Parish Council,Capital Expenditure,Communties,Capital Grant Funding,651,Grants,19/01/2018,Supplies & Services,81325,Capital Expenditure,CAPITAL
4916.36,Pegasus Planning Group,Transformation,Property Services,Land Holdings,1884,Legal & Professional Services,29/03/2018,Supplies & Services,83155,Transformation,TRANSFORMATION
4875,The Hr Lounge,Transformation,Human Resources,Human Resources,4709,Legal & Professional Services,11/01/2018,Supplies & Services,80086,Transformation,TRANSFORMATION
4800,A S Response Ltd,Capital Expenditure,Neighbourhoods,Disabled Facilities Grant,332,Grants,25/01/2018,Supplies & Services,82607,Capital Expenditure,CAPITAL
4740.07,Covalent Software Ltd,Transformation,Ict,It Rechargeable Costs,4722,Maintenance Contracts - S&S,27/03/2018,Supplies & Services,84039,Transformation,TRANSFORMATION
4650,Trent Valley Plumbing & Build,Capital Expenditure,Neighbourhoods,Disabled Facilities Grant,332,Grants,06/03/2018,Supplies & Services,83648,Capital Expenditure,CAPITAL
4591.5,Lodge Tyre Co.Ltd,Neighbourhoods,Waste & Fleet Management,Waste Collection,8403,Tyres,11/01/2018,Transport Related Expenditure,82122,Neighbourhoods,NEIGHBOURHOODS
4585.62,Toot Hill School,Neighbourhoods,Leisure Contracts & Car Parks,Leisure Management Contract,1795,Gas,15/03/2018,Premises Related Expenditure,82899,Neighbourhoods,FINANCE & CORPORATE SERVICES
4508.7,Toot Hill School,Neighbourhoods,Leisure Contracts & Car Parks,Leisure Management Contract,1795,Electricity,15/03/2018,Premises Related Expenditure,82898,Neighbourhoods,FINANCE & CORPORATE SERVICES
4500,Via East Midlands,Capital Expenditure,Transformation & Innovation,Arena Car Park,336,Contractors-Third Party,27/03/2018,Third Party Payments,84120,Capital Expenditure,CAPITAL
4500,Broxtowe Borough Council,Communities,Local Development Framework,Development Plans,1232,Legal & Professional Services,23/02/2018,Supplies & Services,79247,Communities,COMMUNITIES
4400,Catalyst Church,Capital Expenditure,Communties,Capital Grant Funding,651,Grants,29/03/2018,Supplies & Services,84390,Capital Expenditure,CAPITAL
4300,Newark And Sherwood D C,Transformation,Human Resources,Corporate Training,4893,Training Expenses,27/03/2018,Employee Related Expenditure,83495,Transformation,TRANSFORMATION
4296.82,Royal Mail Group Ltd,Transformation,Bsu,Central Mail,4871,Postages,27/03/2018,Supplies & Services,83756,Transformation,TRANSFORMATION
4292.49,Thomson Reuters,Finance & Corporate Services,Legal,Legal Services,4701,Books & Publications,27/03/2018,Supplies & Services,83777,Finance & Corporate Services,FINANCE & CORPORATE SERVICES
4193,Cctv East Midlands Ltd,Capital Expenditure,Transformation & Innovation,Ict Replacement Programme,592,Computer Hardware,21/03/2018,Supplies & Services,83760,Capital Expenditure,CAPITAL
4166.66,Ngi Uk Limited,Transformation,Economic Regeneration,Economic Development,1887,Other Services,25/01/2018,Supplies & Services,82605,Transformation,TRANSFORMATION
4043,Lodge Tyre Co.Ltd,Neighbourhoods,Waste & Fleet Management,Waste Collection,8403,Tyres,21/03/2018,Transport Related Expenditure,84047,Neighbourhoods,NEIGHBOURHOODS
4035.6,Allen Archaeology,Transformation,Property Services,Unit 10 Chapel Lane,4788,Legal & Professional Services,27/03/2018,Supplies & Services,84146,Transformation,NEIGHBOURHOODS
4021.5,Broxtowe Borough Council,Neighbourhoods,Strategic Housing,Housing Advice,1149,It - Fixed Costs,31/01/2018,Supplies & Services,82167,Neighbourhoods,NEIGHBOURHOODS
4000,Centerprise International Ltd,Transformation,Ict,It Rechargeable Costs,4722,Maintenance Contracts - S&S,21/03/2018,Supplies & Services,83692,Transformation,TRANSFORMATION
3988,Access Doors,Transformation,Property Services,"Chapel Lane, Bingham",4799,Responsive Works - Buildings,06/03/2018,Premises Related Expenditure,83382,Transformation,TRANSFORMATION
3978.92,Lynch Healthcare Ltd,Capital Expenditure,Neighbourhoods,Disabled Facilities Grant,332,Grants,11/01/2018,Supplies & Services,82123,Capital Expenditure,CAPITAL
3968.48,Advanced Business Solutions,Transformation,Ict,It Rechargeable Costs,4722,Maintenance Contracts - S&S,25/01/2018,Supplies & Services,82155,Transformation,TRANSFORMATION
3945,Kingkraft,Capital Expenditure,Neighbourhoods,Disabled Facilities Grant,332,Grants,23/02/2018,Supplies & Services,83423,Capital Expenditure,CAPITAL
3942,Gedling Borough Council,Rechargeable Accounts,Elections Rechargeable,Parish Election,7100,Election Fees,27/03/2018,Employee Related Expenditure,84206,Rechargeable Accounts,FINANCE & CORPORATE SERVICES
3854.51,Trent Valley Plumbing & Build,Capital Expenditure,Neighbourhoods,Disabled Facilities Grant,332,Grants,23/02/2018,Supplies & Services,83421,Capital Expenditure,CAPITAL
3832,Nuthall Electrical Services Ltd,Communities,Community Development,Gamston Community Hall,8992,Responsive Works - Buildings,05/01/2018,Premises Related Expenditure,81823,Communities,COMMUNITIES
3817,Freeth Cartwright Llp,Capital Expenditure,Transformation & Innovation,Multi Service Centre,348,Legal & Professional Services,05/01/2018,Supplies & Services,81672,Capital Expenditure,CAPITAL
3790.47,Bt Telephone Payment Centre,Transformation,Ict,It Rechargeable Costs,4722,Maintenance Contracts - S&S,15/03/2018,Supplies & Services,83656,Transformation,TRANSFORMATION
3770.68,Terberg Matec Uk Limited,Neighbourhoods,Waste & Fleet Management,Garage,8700,Contractors-Supplies & Servs,19/01/2018,Supplies & Services,82339,Neighbourhoods,NEIGHBOURHOODS
3740,C&M Builders,Capital Expenditure,Neighbourhoods,Disabled Facilities Grant,332,Grants,19/01/2018,Supplies & Services,82190,Capital Expenditure,CAPITAL
3720,Rsm,Finance & Corporate Services,Financial Services,Internal Audit,4708,Legal & Professional Services,11/01/2018,Supplies & Services,81814,Finance & Corporate Services,FINANCE & CORPORATE SERVICES
3660,House Clearance Specialists Ltd,Rechargeable Accounts,Suspense Accounts,Suspense No Code,5224,Returned Creditors,21/03/2018,Returned Creditors,84064,Rechargeable Accounts,FINANCE & CORPORATE SERVICES
3590,Broxtowe Borough Council,Neighbourhoods,Environmental Health,Licences - General,1029,Legal & Professional Services,31/01/2018,Supplies & Services,82562,Neighbourhoods,NEIGHBOURHOODS
3500,Improvement & Development Agency,Finance & Corporate Services,Emt & Transformation,Executive Management Team,4721,Training Expenses,19/02/2018,Employee Related Expenditure,82704,Finance & Corporate Services,FINANCE & CORPORATE SERVICES
3495,Trent Valley Plumbing & Build,Capital Expenditure,Neighbourhoods,Disabled Facilities Grant,332,Grants,19/01/2018,Supplies & Services,82191,Capital Expenditure,CAPITAL
3490,Cds Services,Capital Expenditure,Neighbourhoods,Disabled Facilities Grant,332,Grants,09/02/2018,Supplies & Services,83045,Capital Expenditure,CAPITAL
3463.25,Total Reclaims Demolition Ltd,Capital Expenditure,Transformation & Innovation,Cotgrave Masterplan,303,Legal & Professional Services,11/01/2018,Supplies & Services,82141,Capital Expenditure,CAPITAL
3450,Modern Mindset Ltd,Rechargeable Accounts,Suspense Accounts,Suspense No Code,5224,Returned Creditors,15/03/2018,Returned Creditors,84052,Rechargeable Accounts,FINANCE & CORPORATE SERVICES
3441.77,Proav Limited,Transformation,Ict,It Rechargeable Costs,4722,Legal & Professional Services,25/01/2018,Supplies & Services,82318,Transformation,TRANSFORMATION
3429.39,Toot Hill School,Neighbourhoods,Leisure Contracts & Car Parks,Leisure Management Contract,1795,Gas,15/03/2018,Premises Related Expenditure,82898,Neighbourhoods,FINANCE & CORPORATE SERVICES
3334.27,Royal Mail Group Ltd,Transformation,Bsu,Central Mail,4871,Postages,27/03/2018,Supplies & Services,84048,Transformation,TRANSFORMATION
3333.96,Newark & Sherwood District Council,Neighbourhoods,Waste & Fleet Management,Green Bin Collection,8402,Sale Of Waste Bins,12/02/2018,Income,82588,Neighbourhoods,NEIGHBOURHOODS
3252,Freeth Cartwright Llp,Transformation,Property Services,Land Holdings,1884,Legal & Professional Services,25/01/2018,Supplies & Services,82554,Transformation,TRANSFORMATION
3222.79,Severn Trent Water,Neighbourhoods,Waste & Fleet Management,Tanker Services,1948,Waste Disposal,16/02/2018,Supplies & Services,83136,Neighbourhoods,NEIGHBOURHOODS
3150,University Of The West Of England,Communities,Planning & Growth,Development Control,1161,Training Expenses,23/02/2018,Employee Related Expenditure,83398,Communities,COMMUNITIES
3117.5,Fcc Recycling Uk Limited,Capital Expenditure,Communties,Capital Grant Funding,651,Grants,27/03/2018,Supplies & Services,83752,Capital Expenditure,CAPITAL
3113.5,Lodge Tyre Co.Ltd,Neighbourhoods,Waste & Fleet Management,Waste Collection,8403,Tyres,06/03/2018,Transport Related Expenditure,83459,Neighbourhoods,NEIGHBOURHOODS
3082.75,Midland Regional Printers Ltd,Finance & Corporate Services,"Performance, Repn & Comms",Performance And Reputation,4710,External Printing,16/02/2018,Supplies & Services,82710,Finance & Corporate Services,FINANCE & CORPORATE SERVICES
3050,House Clearance Specialists Ltd,Neighbourhoods,Environmental Health,Work In Default,1066,Other Miscellaneous Expenses,06/03/2018,Supplies & Services,83575,Neighbourhoods,NEIGHBOURHOODS
3000,Penna Plc,Neighbourhoods,Environmental Health,Environmental Health Ha,4743,Employee Advertising,21/03/2018,Employee Related Expenditure,84038,Neighbourhoods,NEIGHBOURHOODS
3000,Gfirst Lep Cic,Transformation,Economic Regeneration,Economic Development,1887,Legal & Professional Services,16/02/2018,Supplies & Services,83269,Transformation,TRANSFORMATION
2972.85,Ghm Planning Limited,Communities,Planning & Growth,Development Control,1161,Agency Staff,23/02/2018,Employee Related Expenditure,83027,Communities,COMMUNITIES
2966.08,Streetwise Environmental Ltd,Transformation,Property Services,Open Spaces & Footpaths,1290,Responsive Works - Buildings,25/01/2018,Premises Related Expenditure,71585,Transformation,TRANSFORMATION
2960.69,Prudential Local Govt Avc Dept,Sals & Wages Deductions A/C,Sals & Wages Deductions A/C,Sals & Wages Deductions A/C,5015,Avc'S,27/03/2018,Transfers Expenditure,84402,Sals & Wages Deductions A/C,FINANCE & CORPORATE SERVICES
2945,Alfred Bagnall & Sons (East Midlands) Ltd,Neighbourhoods,Strategic Housing,Hostel Hound Lodge,1111,Planned Maintenance Recharge,05/01/2018,Supplies & Services,81301,Neighbourhoods,NEIGHBOURHOODS
2940,Ropewalk Chambers,Communities,Planning & Growth,Development Control,1161,Legal & Professional Services,23/02/2018,Supplies & Services,82953,Communities,COMMUNITIES
2925,Heritage Trust Of Lincolnshire Limited,Communities,Community Development,Arts,1550,Projects & Activities,01/03/2018,Supplies & Services,83078,Communities,COMMUNITIES
2918.75,Frontline Recruitment Ltd,Neighbourhoods,Waste & Fleet Management,Waste Collection,8403,Agency Staff,15/03/2018,Employee Related Expenditure,83934,Neighbourhoods,NEIGHBOURHOODS
2900.52,David Parr Limited,Neighbourhoods,Waste & Fleet Management,Garage,8700,Contractors-Transport,07/02/2018,Transport Related Expenditure,82603,Neighbourhoods,NEIGHBOURHOODS
2875,Modern Mindset Ltd,Capital Expenditure,Transformation & Innovation,Applications/Apps,605,Software,16/02/2018,Supplies & Services,83204,Capital Expenditure,CAPITAL
2875,Blachere Illumination Uk Ltd,Transformation,Economic Regeneration,West Bridgford Town Centre,1875,Planned Maintenance Recharge,11/01/2018,Supplies & Services,81959,Transformation,TRANSFORMATION
2869.82,British Gas Business,Neighbourhoods,Waste & Fleet Management,Depot,4001,Electricity,19/01/2018,Premises Related Expenditure,82149,Neighbourhoods,NEIGHBOURHOODS
2846.1,Blachere Illumination Uk Ltd,Transformation,Economic Regeneration,West Bridgford Town Centre,1875,Other Services,31/01/2018,Supplies & Services,82293,Transformation,TRANSFORMATION
2821,A R Signs Ltd,Finance & Corporate Services,"Performance, Repn & Comms",Performance And Reputation,4710,External Printing,12/02/2018,Supplies & Services,82615,Finance & Corporate Services,FINANCE & CORPORATE SERVICES
2812.67,British Gas Business,Neighbourhoods,Waste & Fleet Management,Depot,4001,Electricity,15/03/2018,Premises Related Expenditure,83039,Neighbourhoods,NEIGHBOURHOODS
2768.65,Ghm Planning Limited,Communities,Planning & Growth,Development Control,1161,Agency Staff,19/01/2018,Employee Related Expenditure,81766,Communities,COMMUNITIES
2721.75,Ghm Planning Limited,Communities,Planning & Growth,Development Control,1161,Agency Staff,19/01/2018,Employee Related Expenditure,81765,Communities,COMMUNITIES
2721,A R Signs Ltd,Finance & Corporate Services,"Performance, Repn & Comms",Performance And Reputation,4710,External Printing,27/03/2018,Supplies & Services,83712,Finance & Corporate Services,FINANCE & CORPORATE SERVICES
2687.3,Ghm Planning Limited,Communities,Planning & Growth,Development Control,1161,Agency Staff,09/02/2018,Employee Related Expenditure,82893,Communities,COMMUNITIES
2681.17,Prudential Local Govt Avc Dept,Sals & Wages Deductions A/C,Sals & Wages Deductions A/C,Sals & Wages Deductions A/C,5015,Avc'S,06/03/2018,Transfers Expenditure,83488,Sals & Wages Deductions A/C,FINANCE & CORPORATE SERVICES
2664.16,Prudential Local Govt Avc Dept,Sals & Wages Deductions A/C,Sals & Wages Deductions A/C,Sals & Wages Deductions A/C,5015,Avc'S,11/01/2018,Transfers Expenditure,82022,Sals & Wages Deductions A/C,FINANCE & CORPORATE SERVICES
2651.45,Ghm Planning Limited,Communities,Planning & Growth,Development Control,1161,Agency Staff,09/02/2018,Employee Related Expenditure,82894,Communities,COMMUNITIES
2650.09,Prudential Local Govt Avc Dept,Sals & Wages Deductions A/C,Sals & Wages Deductions A/C,Sals & Wages Deductions A/C,5015,Avc'S,12/02/2018,Transfers Expenditure,82816,Sals & Wages Deductions A/C,FINANCE & CORPORATE SERVICES
2647.89,Ccs Media,Capital Expenditure,Transformation & Innovation,Ict Replacement Programme,592,Computer Hardware,07/02/2018,Supplies & Services,82323,Capital Expenditure,CAPITAL
2645,Lg Futures,Finance & Corporate Services,Financial Services,Financial Services,4705,Subscriptions,01/03/2018,Supplies & Services,83033,Finance & Corporate Services,FINANCE & CORPORATE SERVICES
2639.32,Pnltools Limited,Transformation,Ict,It Rechargeable Costs,4722,Maintenance Contracts - S&S,16/02/2018,Supplies & Services,81768,Transformation,TRANSFORMATION
2622,A R Signs Ltd,Finance & Corporate Services,"Performance, Repn & Comms",Performance And Reputation,4710,External Printing,06/03/2018,Supplies & Services,83208,Finance & Corporate Services,FINANCE & CORPORATE SERVICES
2580.5,Ghm Planning Limited,Communities,Planning & Growth,Development Control,1161,Agency Staff,16/02/2018,Employee Related Expenditure,82895,Communities,COMMUNITIES
2556.98,British Gas Business,Neighbourhoods,Waste & Fleet Management,Depot,4001,Electricity,27/03/2018,Premises Related Expenditure,83851,Neighbourhoods,NEIGHBOURHOODS
2550,Ps Tax,Finance & Corporate Services,Financial Services,Financial Services,4705,Legal & Professional Services,15/03/2018,Supplies & Services,83655,Finance & Corporate Services,FINANCE & CORPORATE SERVICES
2500,Dotted Eyes Ltd,Communities,Local Development Framework,Development Plans,1232,Legal & Professional Services,06/03/2018,Supplies & Services,83121,Communities,COMMUNITIES
2480,Rsm,Finance & Corporate Services,Financial Services,Internal Audit,4708,Legal & Professional Services,21/03/2018,Supplies & Services,82612,Finance & Corporate Services,FINANCE & CORPORATE SERVICES
2453.86,Gedling Borough Council,Rechargeable Accounts,Elections Rechargeable,Parish Election,7100,Election Fees,19/01/2018,Employee Related Expenditure,82491,Rechargeable Accounts,FINANCE & CORPORATE SERVICES
2395.01,Edenred,Sals & Wages Deductions A/C,Sals & Wages Deductions A/C,Sals & Wages Deductions A/C,5015,Edenred,15/01/2018,Transfers Expenditure,82185,Sals & Wages Deductions A/C,FINANCE & CORPORATE SERVICES
2395.01,Edenred,Sals & Wages Deductions A/C,Sals & Wages Deductions A/C,Sals & Wages Deductions A/C,5015,Edenred,06/03/2018,Transfers Expenditure,83202,Sals & Wages Deductions A/C,FINANCE & CORPORATE SERVICES
2360.38,Penna Plc,Finance & Corporate Services,Financial Services,Financial Services,4705,Interview Expenses,19/01/2018,Employee Related Expenditure,82142,Finance & Corporate Services,FINANCE & CORPORATE SERVICES
2358.76,Royal Mail Group Ltd,Transformation,Bsu,Central Mail,4871,Postages,27/03/2018,Supplies & Services,83502,Transformation,TRANSFORMATION
2350.44,Stanley Security Solutions,Neighbourhoods,Waste & Fleet Management,Depot,4001,Service Maintenance Contracts,23/02/2018,Premises Related Expenditure,82161,Neighbourhoods,NEIGHBOURHOODS
2321.5,Lodge Tyre Co.Ltd,Neighbourhoods,Waste & Fleet Management,Waste Collection,8403,Tyres,16/02/2018,Transport Related Expenditure,82912,Neighbourhoods,NEIGHBOURHOODS
2311.5,Tetris Training Ltd,Neighbourhoods,Waste & Fleet Management,Waste Collection,8403,Training Expenses,06/03/2018,Employee Related Expenditure,82844,Neighbourhoods,NEIGHBOURHOODS
2269.68,Broxtowe Borough Council,Neighbourhoods,Environmental Health,Licences - General,1029,Legal & Professional Services,27/03/2018,Supplies & Services,84235,Neighbourhoods,NEIGHBOURHOODS
2235,South Notts Fabrications Ltd,Capital Expenditure,Transformation & Innovation,Arena Car Park,336,Contractors-Third Party,05/01/2018,Third Party Payments,81820,Capital Expenditure,CAPITAL
2231,Guardian Parks And Developments Ltd,Communities,Community Development,Rushcliffe Country Park,1375,Other Equipment/Materials,16/02/2018,Supplies & Services,83234,Communities,COMMUNITIES
2218.74,Streetwise Environmental Ltd,Transformation,Property Services,Open Spaces & Footpaths,1290,Responsive Works - Buildings,16/02/2018,Premises Related Expenditure,81518,Transformation,TRANSFORMATION
2210.38,T&S Heating Ltd,Capital Expenditure,Neighbourhoods,Disabled Facilities Grant,332,Grants,19/01/2018,Supplies & Services,82370,Capital Expenditure,CAPITAL
2196.87,Global Hse Solutions Limited,Capital Expenditure,Neighbourhoods,Arena Development,415,Contractors-Third Party,27/03/2018,Third Party Payments,84058,Capital Expenditure,CAPITAL
2110.71,Neil Shacklocks Plumbing Heating Electrical,Capital Expenditure,Neighbourhoods,Disabled Facilities Grant,332,Grants,06/03/2018,Supplies & Services,83654,Capital Expenditure,CAPITAL
2085.75,Vodafone Limited,Transformation,Ict,It Rechargeable Costs,4722,Maintenance Contracts - S&S,19/01/2018,Supplies & Services,82119,Transformation,TRANSFORMATION
2047.8,Frontline Recruitment Ltd,Neighbourhoods,Waste & Fleet Management,Waste Collection,8403,Agency Staff,31/01/2018,Employee Related Expenditure,82493,Neighbourhoods,NEIGHBOURHOODS
2028,Alfred Bagnall & Sons (East Midlands) Ltd,Communities,Community Development,West Park,8994,Planned Maintenance Recharge,11/01/2018,Supplies & Services,80414,Communities,COMMUNITIES
2025,Badenoch & Clark,Finance & Corporate Services,Financial Services,Financial Services,4705,Agency Staff,27/03/2018,Employee Related Expenditure,84063,Finance & Corporate Services,FINANCE & CORPORATE SERVICES
2016,Parkwood Community Leisure,Neighbourhoods,Leisure Contracts & Car Parks,Leisure Management Contract,1795,D.B.S Checks - Employees,16/02/2018,Employee Related Expenditure,82792,Neighbourhoods,FINANCE & CORPORATE SERVICES
2000,Bentley Project Management,Capital Expenditure,Transformation & Innovation,Cotgrave Masterplan,303,Legal & Professional Services,19/01/2018,Supplies & Services,82004,Capital Expenditure,CAPITAL
2000,Bentley Project Management,Capital Expenditure,Transformation & Innovation,Cotgrave Masterplan,303,Legal & Professional Services,16/02/2018,Supplies & Services,82883,Capital Expenditure,CAPITAL
2000,Bentley Project Management,Capital Expenditure,Transformation & Innovation,Cotgrave Masterplan,303,Legal & Professional Services,21/03/2018,Supplies & Services,83705,Capital Expenditure,CAPITAL
2000,Cp Viability Ltd,Communities,Planning & Growth,Development Control,1161,Legal & Professional Services,07/02/2018,Supplies & Services,82470,Communities,COMMUNITIES
2000,Maltby & Company,Neighbourhoods,Leisure Contracts & Car Parks,Car Parks,1900,Planned Maintenance Recharge,06/03/2018,Supplies & Services,83588,Neighbourhoods,FINANCE & CORPORATE SERVICES
2000,Mishcon De Reya,Finance & Corporate Services,Financial Services,Financial Services,4705,Legal & Professional Services,12/02/2018,Supplies & Services,82703,Finance & Corporate Services,FINANCE & CORPORATE SERVICES
1946.25,Ep Consulting Building Services Engineers,Capital Expenditure,Transformation & Innovation,Cotgrave Masterplan,303,Legal & Professional Services,31/01/2018,Supplies & Services,82626,Capital Expenditure,CAPITAL
1946.25,Ep Consulting Building Services Engineers,Capital Expenditure,Transformation & Innovation,Cotgrave Masterplan,303,Legal & Professional Services,06/03/2018,Supplies & Services,83387,Capital Expenditure,CAPITAL
1925,Redhill Marine Limited,Communities,Planning & Growth,Development Control,1161,Fees & Charges - General,07/02/2018,Income,81313,Communities,COMMUNITIES
1920,Beaver Installations,Capital Expenditure,Neighbourhoods,Blc Enhancements,417,Contractors-Third Party,29/03/2018,Third Party Payments,84246,Capital Expenditure,CAPITAL
1875.5,Medigold Health Consultancy Ltd,Transformation,Human Resources,Human Resources,4709,Legal & Professional Services,19/01/2018,Supplies & Services,81808,Transformation,TRANSFORMATION
1875,Badenoch & Clark,Finance & Corporate Services,Financial Services,Financial Services,4705,Agency Staff,12/02/2018,Employee Related Expenditure,82951,Finance & Corporate Services,FINANCE & CORPORATE SERVICES
1857,Freeth Cartwright Llp,Capital Expenditure,Transformation & Innovation,Cotgrave Masterplan,303,Legal & Professional Services,16/02/2018,Supplies & Services,82954,Capital Expenditure,CAPITAL
1855,Dolphin Mobility East Mids Ltd,Capital Expenditure,Neighbourhoods,Disabled Facilities Grant,332,Grants,06/03/2018,Supplies & Services,83517,Capital Expenditure,CAPITAL
1850,Mick Dutton & Son Limited,Communities,Community Development,Rushcliffe Country Park,1375,Other Equipment/Materials,09/02/2018,Supplies & Services,79034,Communities,COMMUNITIES
1848.95,Streetwise Environmental Ltd,Transformation,Property Services,Open Spaces & Footpaths,1290,Responsive Works - Buildings,16/02/2018,Premises Related Expenditure,82324,Transformation,TRANSFORMATION
1846.89,Severn Trent Water,Neighbourhoods,Waste & Fleet Management,Tanker Services,1948,Waste Disposal,09/02/2018,Supplies & Services,82473,Neighbourhoods,NEIGHBOURHOODS
1840.79,Xerox (Uk) Limited,Transformation,Ict,Photocopiers,5017,Rental & Copy Charges,31/01/2018,Supplies & Services,82633,Transformation,TRANSFORMATION
1810,Allen Archaeology,Transformation,Property Services,Unit 10 Chapel Lane,4788,Legal & Professional Services,27/03/2018,Supplies & Services,84147,Transformation,NEIGHBOURHOODS
1786.62,Nsl Limited,Neighbourhoods,Leisure Contracts & Car Parks,Car Parks,1900,Legal & Professional Services,19/01/2018,Supplies & Services,82125,Neighbourhoods,FINANCE & CORPORATE SERVICES
1785,Opus International Consultants (Uk) Ltd,Capital Expenditure,Transformation & Innovation,New Depot,312,Legal & Professional Services,27/03/2018,Supplies & Services,84014,Capital Expenditure,CAPITAL
1747.77,Nsl Limited,Neighbourhoods,Leisure Contracts & Car Parks,Car Parks,1900,Maintenance Contracts - S&S,16/02/2018,Supplies & Services,82820,Neighbourhoods,FINANCE & CORPORATE SERVICES
1747.18,Dolphin Mobility East Mids Ltd,Capital Expenditure,Neighbourhoods,Disabled Facilities Grant,332,Grants,09/02/2018,Supplies & Services,83049,Capital Expenditure,CAPITAL
1726.44,Groundsman Tools And Supplies Llp,Neighbourhoods,Waste & Fleet Management,Depot,4001,Other Equipment/Materials,27/03/2018,Supplies & Services,83721,Neighbourhoods,NEIGHBOURHOODS
1724.5,Kpmg Llp,Finance & Corporate Services,Revenues & Benefits,Housing Benefits Admin.,1140,External Audit Fee,11/01/2018,Supplies & Services,81818,Finance & Corporate Services,FINANCE & CORPORATE SERVICES
1724.5,Kpmg Llp,Finance & Corporate Services,Revenues & Benefits,Housing Benefits Admin.,1140,External Audit Fee,27/03/2018,Supplies & Services,84337,Finance & Corporate Services,FINANCE & CORPORATE SERVICES
1720.38,Notts County Cricket Club,Finance & Corporate Services,Democratic Services,Mayoral Expenses,1001,Catering Provisions,12/02/2018,Supplies & Services,81774,Finance & Corporate Services,FINANCE & CORPORATE SERVICES
1714.57,Water Plus,Neighbourhoods,Strategic Housing,Hostel Hound Lodge,1111,Water Charges,05/01/2018,Premises Related Expenditure,81937,Neighbourhoods,NEIGHBOURHOODS
1711.56,Frontline Recruitment Ltd,Neighbourhoods,Waste & Fleet Management,Waste Collection,8403,Agency Staff,27/03/2018,Employee Related Expenditure,84118,Neighbourhoods,NEIGHBOURHOODS
1705,A R Signs Ltd,Finance & Corporate Services,"Performance, Repn & Comms",Performance And Reputation,4710,External Printing,12/02/2018,Supplies & Services,82616,Finance & Corporate Services,FINANCE & CORPORATE SERVICES
1700,Gedling Borough Council,Transformation,Human Resources,Corporate Training,4893,Training Expenses,15/01/2018,Employee Related Expenditure,81819,Transformation,TRANSFORMATION
1687.5,Badenoch & Clark,Finance & Corporate Services,Financial Services,Financial Services,4705,Agency Staff,19/01/2018,Employee Related Expenditure,82495,Finance & Corporate Services,FINANCE & CORPORATE SERVICES
1687.5,Badenoch & Clark,Finance & Corporate Services,Financial Services,Financial Services,4705,Agency Staff,19/01/2018,Employee Related Expenditure,82496,Finance & Corporate Services,FINANCE & CORPORATE SERVICES
1684.54,Dkn Decorators Ltd,Transformation,Property Services,Arena Civic Centre,4718,Responsive Works - Buildings,11/01/2018,Premises Related Expenditure,81750,Transformation,TRANSFORMATION
1679.57,Nsl Limited,Neighbourhoods,Leisure Contracts & Car Parks,Car Parks,1900,Legal & Professional Services,27/03/2018,Supplies & Services,83728,Neighbourhoods,FINANCE & CORPORATE SERVICES
1640,Daykin Floor Renovation Ltd,Communities,Community Development,Lutterell Hall,8990,Service Maintenance Contracts,16/02/2018,Premises Related Expenditure,82847,Communities,COMMUNITIES
1637.17,Ee Ltd (Airtime),Transformation,Ict,Telephones,4870,Mobiles,27/03/2018,Supplies & Services,84012,Transformation,TRANSFORMATION
1632.17,Frontline Recruitment Ltd,Neighbourhoods,Waste & Fleet Management,Waste Collection,8403,Agency Staff,15/03/2018,Employee Related Expenditure,83755,Neighbourhoods,NEIGHBOURHOODS
1620,Badenoch & Clark,Finance & Corporate Services,Financial Services,Financial Services,4705,Agency Staff,21/03/2018,Employee Related Expenditure,83864,Finance & Corporate Services,FINANCE & CORPORATE SERVICES
1606.07,Severn Trent Water,Neighbourhoods,Waste & Fleet Management,Tanker Services,1948,Waste Disposal,15/03/2018,Supplies & Services,83950,Neighbourhoods,NEIGHBOURHOODS
1595,Alfred Bagnall & Sons (East Midlands) Ltd,Transformation,Property Services,Open Spaces & Footpaths,1290,Planned Maintenance Recharge,11/01/2018,Supplies & Services,80414,Transformation,TRANSFORMATION
1594.36,Water Plus,Neighbourhoods,Waste & Fleet Management,Depot,4001,Water Charges,09/02/2018,Premises Related Expenditure,81697,Neighbourhoods,NEIGHBOURHOODS
1594.36,Severn Trent Water,Neighbourhoods,Waste & Fleet Management,Tanker Services,1948,Waste Disposal,09/02/2018,Supplies & Services,82909,Neighbourhoods,NEIGHBOURHOODS
1589.37,Ee Ltd (Airtime),Transformation,Ict,Telephones,4870,Mobiles,16/02/2018,Supplies & Services,83058,Transformation,TRANSFORMATION
1584,Tunstall Telecom,Capital Expenditure,Neighbourhoods,Assistive Technology,335,Grants,07/02/2018,Supplies & Services,82471,Capital Expenditure,CAPITAL
1583.39,Ee Ltd (Airtime),Transformation,Ict,Telephones,4870,Mobiles,25/01/2018,Supplies & Services,82150,Transformation,TRANSFORMATION
1550.63,Royal Mail Group Ltd,Transformation,Bsu,Central Mail,4871,Postages,15/01/2018,Supplies & Services,81931,Transformation,TRANSFORMATION
1550.4,Browne Jacobson,Transformation,Property Services,"Chapel Lane, Bingham",4799,Legal & Professional Services,21/03/2018,Supplies & Services,83780,Transformation,TRANSFORMATION
1550,Wireless Cctv Ltd,Neighbourhoods,Environmental Health,Community Safety,1598,Projects & Activities,31/01/2018,Supplies & Services,82594,Neighbourhoods,NEIGHBOURHOODS
1500,Via East Midlands,Capital Expenditure,Transformation & Innovation,Arena Car Park,336,Contractors-Third Party,27/03/2018,Third Party Payments,84119,Capital Expenditure,CAPITAL
1500,Bsp Consulting,Capital Expenditure,Transformation & Innovation,Cotgrave Masterplan,303,Legal & Professional Services,11/01/2018,Supplies & Services,81984,Capital Expenditure,CAPITAL
1500,Bsp Consulting,Capital Expenditure,Transformation & Innovation,Cotgrave Masterplan,303,Legal & Professional Services,16/02/2018,Supplies & Services,82833,Capital Expenditure,CAPITAL
1500,Bsp Consulting,Capital Expenditure,Transformation & Innovation,Cotgrave Masterplan,303,Legal & Professional Services,15/03/2018,Supplies & Services,83706,Capital Expenditure,CAPITAL
1500,Idox Software Limited,Capital Expenditure,Transformation & Innovation,Digital Strategy,604,Software,09/02/2018,Supplies & Services,82446,Capital Expenditure,CAPITAL
1480.6,Severn Trent Water,Transformation,Property Services,Land Holdings,1884,Legal & Professional Services,27/03/2018,Supplies & Services,83696,Transformation,TRANSFORMATION
1473.28,Royal Mail Group Ltd,Transformation,Bsu,Central Mail,4871,Postages,25/01/2018,Supplies & Services,82310,Transformation,TRANSFORMATION
1468.7,Nelson Training Ltd,Finance & Corporate Services,Democratic Services,Members Services,1000,Training Expenses,20/03/2018,Employee Related Expenditure,83209,Finance & Corporate Services,FINANCE & CORPORATE SERVICES
1465,Nuthall Electrical Services Ltd,Transformation,Property Services,"Chapel Lane, Bingham",4799,Responsive Works - Buildings,05/01/2018,Premises Related Expenditure,81823,Transformation,TRANSFORMATION
1446.65,British Gas Business,Transformation,Property Services,The Point,1886,Electricity,06/03/2018,Premises Related Expenditure,83079,Transformation,TRANSFORMATION
1434,Thyssenkrupp Elevator Uk Limited,Rechargeable Accounts,Suspense Accounts,Suspense No Code,5224,Returned Creditors,19/01/2018,Returned Creditors,82486,Rechargeable Accounts,FINANCE & CORPORATE SERVICES
1425,Grapefruit Creative,Finance & Corporate Services,"Performance, Repn & Comms",Performance And Reputation,4710,Legal & Professional Services,21/03/2018,Supplies & Services,84139,Finance & Corporate Services,FINANCE & CORPORATE SERVICES
1419.67,Edf Energy,Neighbourhoods,Leisure Contracts & Car Parks,Car Parks,1900,Electricity,12/02/2018,Premises Related Expenditure,82913,Neighbourhoods,FINANCE & CORPORATE SERVICES
1411.44,Cleansing Service Group Ltd,Neighbourhoods,Waste & Fleet Management,Depot,4001,Sewerage & Environmental,16/02/2018,Premises Related Expenditure,81960,Neighbourhoods,NEIGHBOURHOODS
1403.4,Streetwise Environmental Ltd,Communities,Community Development,Environmental Promotion,1590,Legal & Professional Services,11/01/2018,Supplies & Services,81519,Communities,COMMUNITIES
1399.67,Co-Operative Funeral Care,Neighbourhoods,Environmental Health,Public Health,1127,Welfare Burials,05/01/2018,Supplies & Services,81758,Neighbourhoods,NEIGHBOURHOODS
1391.66,Frontline Recruitment Ltd,Neighbourhoods,Waste & Fleet Management,Waste Collection,8403,Agency Staff,09/02/2018,Employee Related Expenditure,82822,Neighbourhoods,NEIGHBOURHOODS
1386,A R Signs Ltd,Finance & Corporate Services,"Performance, Repn & Comms",Performance And Reputation,4710,External Printing,07/03/2018,Supplies & Services,83466,Finance & Corporate Services,FINANCE & CORPORATE SERVICES
1385.72,Nelson Training Ltd,Finance & Corporate Services,Democratic Services,Members Services,1000,Employee Advertising,06/03/2018,Employee Related Expenditure,83210,Finance & Corporate Services,FINANCE & CORPORATE SERVICES
1375.22,British Gas Business,Transformation,Property Services,The Point,1886,Electricity,06/03/2018,Premises Related Expenditure,83135,Transformation,TRANSFORMATION
1371,Freeth Cartwright Llp,Capital Expenditure,Transformation & Innovation,Multi Service Centre,348,Legal & Professional Services,16/02/2018,Supplies & Services,82955,Capital Expenditure,CAPITAL
1361.5,Ccs Media,Transformation,Ict,It Rechargeable Costs,4722,Software,07/02/2018,Supplies & Services,81976,Transformation,TRANSFORMATION
1355,Maltby & Company,Transformation,Property Services,Open Spaces & Footpaths,1290,Responsive Works - Buildings,11/01/2018,Premises Related Expenditure,81978,Transformation,TRANSFORMATION
1350,The Treecology Team Ltd,Communities,Community Development,Rushcliffe Country Park,1375,Other Equipment/Materials,21/03/2018,Supplies & Services,84122,Communities,COMMUNITIES
1350,Nottingham City Council,Transformation,Human Resources,Corporate Training,4893,Training Expenses,27/03/2018,Employee Related Expenditure,83694,Transformation,TRANSFORMATION
1320,Parkwood Community Leisure,Transformation,Bsu,Business Support Unit,4805,Legal & Professional Services,11/01/2018,Supplies & Services,80232,Transformation,TRANSFORMATION
1320,Parkwood Community Leisure,Transformation,Bsu,Business Support Unit,4805,Legal & Professional Services,11/01/2018,Supplies & Services,80998,Transformation,TRANSFORMATION
1320,Parkwood Community Leisure,Transformation,Bsu,Business Support Unit,4805,Legal & Professional Services,16/02/2018,Supplies & Services,82796,Transformation,TRANSFORMATION
1295.93,Adt Fire And Security Plc,Neighbourhoods,Waste & Fleet Management,Depot,4001,Service Maintenance Contracts,16/02/2018,Premises Related Expenditure,83150,Neighbourhoods,NEIGHBOURHOODS
1282.71,Maltby & Company,Neighbourhoods,Strategic Housing,Hostel Hound Lodge,1111,Planned Maintenance Recharge,06/03/2018,Supplies & Services,83584,Neighbourhoods,NEIGHBOURHOODS
1258.57,Frontline Recruitment Ltd,Neighbourhoods,Waste & Fleet Management,Waste Collection,8403,Agency Staff,06/03/2018,Employee Related Expenditure,83516,Neighbourhoods,NEIGHBOURHOODS
1245,Zurich Municipal,Finance & Corporate Services,Financial Services,Liability Claims,4921,Excesses Paid,11/01/2018,Other Control/Suspense A/Cs,81941,Finance & Corporate Services,FINANCE & CORPORATE SERVICES
1245,Zurich Municipal,Finance & Corporate Services,Financial Services,Liability Claims,4921,Excesses Paid,31/01/2018,Other Control/Suspense A/Cs,82429,Finance & Corporate Services,FINANCE & CORPORATE SERVICES
1231.5,Freeth Cartwright Llp,Transformation,Property Services,Land Holdings,1884,Legal & Professional Services,25/01/2018,Supplies & Services,82305,Transformation,TRANSFORMATION
1229.87,Calor Gas Limited,Communities,Community Development,West Park,8994,Gas,16/02/2018,Premises Related Expenditure,82921,Communities,COMMUNITIES
1229.16,Western Power Distribution (East Mids),Capital Expenditure,Transformation & Innovation,Cotgrave Masterplan,303,Legal & Professional Services,23/02/2018,Supplies & Services,83064,Capital Expenditure,CAPITAL
1219,Lexis Nexis Uk,Finance & Corporate Services,Democratic Services,Borough Council Elections,1021,Books & Publications,21/03/2018,Supplies & Services,83757,Finance & Corporate Services,FINANCE & CORPORATE SERVICES
1216.67,The Co-Operative Funeralcare,Neighbourhoods,Environmental Health,Public Health,1127,Welfare Burials,07/02/2018,Supplies & Services,82579,Neighbourhoods,NEIGHBOURHOODS
1215,South Nottingham Academy,Communities,Community Development,Sports Development,1593,Projects & Activities,12/02/2018,Supplies & Services,82803,Communities,COMMUNITIES
1215,Badenoch & Clark,Finance & Corporate Services,Financial Services,Financial Services,4705,Agency Staff,21/03/2018,Employee Related Expenditure,83861,Finance & Corporate Services,FINANCE & CORPORATE SERVICES
1215,Badenoch & Clark,Finance & Corporate Services,Financial Services,Financial Services,4705,Agency Staff,21/03/2018,Employee Related Expenditure,83862,Finance & Corporate Services,FINANCE & CORPORATE SERVICES
1215,Badenoch & Clark,Finance & Corporate Services,Financial Services,Financial Services,4705,Agency Staff,21/03/2018,Employee Related Expenditure,83865,Finance & Corporate Services,FINANCE & CORPORATE SERVICES
1215,Badenoch & Clark,Finance & Corporate Services,Financial Services,Financial Services,4705,Agency Staff,21/03/2018,Employee Related Expenditure,83924,Finance & Corporate Services,FINANCE & CORPORATE SERVICES
1214.2,Frontline Recruitment Ltd,Neighbourhoods,Waste & Fleet Management,Waste Collection,8403,Agency Staff,31/01/2018,Employee Related Expenditure,82642,Neighbourhoods,NEIGHBOURHOODS
1200,Groundsman Tools And Supplies Llp,Neighbourhoods,Waste & Fleet Management,Depot,4001,Other Equipment/Materials,31/01/2018,Supplies & Services,82413,Neighbourhoods,NEIGHBOURHOODS
1200,Parkwood Community Leisure,Transformation,Bsu,Business Support Unit,4805,Legal & Professional Services,21/03/2018,Supplies & Services,83644,Transformation,TRANSFORMATION
1200,Amber House Developments Ltd,Transformation,Property Services,Land Holdings,1884,Legal & Professional Services,19/02/2018,Supplies & Services,82805,Transformation,TRANSFORMATION
1180.5,Print Image Network Ltd,Rechargeable Accounts,Elections Rechargeable,Parish Election,7100,External Printing,05/01/2018,Supplies & Services,81777,Rechargeable Accounts,FINANCE & CORPORATE SERVICES
1180.5,Print Image Network Ltd,Rechargeable Accounts,Elections Rechargeable,Parish Election,7100,External Printing,19/01/2018,Supplies & Services,82361,Rechargeable Accounts,FINANCE & CORPORATE SERVICES
1168,Sanham Agricultural Planning,Communities,Planning & Growth,Development Control,1161,Legal & Professional Services,19/01/2018,Supplies & Services,82354,Communities,COMMUNITIES
1165,Mk Door Systems Ltd T/A Style Midlands,Transformation,Property Services,Arena Civic Centre,4718,Service Maintenance Contracts,21/03/2018,Premises Related Expenditure,84141,Transformation,TRANSFORMATION
1164,Nuthall Electrical Services Ltd,Neighbourhoods,Leisure Contracts & Car Parks,Car Parks,1900,Planned Maintenance Recharge,16/02/2018,Supplies & Services,83271,Neighbourhoods,FINANCE & CORPORATE SERVICES
1160,Riba Enterprises Ltd,Transformation,Property Services,Property Services,4713,Subscriptions,11/01/2018,Supplies & Services,81749,Transformation,TRANSFORMATION
1155.15,Royal Mail Group Ltd,Transformation,Bsu,Central Mail,4871,Postages,06/03/2018,Supplies & Services,83451,Transformation,TRANSFORMATION
1139.48,Frontline Recruitment Ltd,Neighbourhoods,Waste & Fleet Management,Waste Collection,8403,Agency Staff,15/01/2018,Employee Related Expenditure,82160,Neighbourhoods,NEIGHBOURHOODS
1100,Resilient Me,Transformation,Human Resources,Corporate Training,4893,Training Expenses,05/01/2018,Employee Related Expenditure,81740,Transformation,TRANSFORMATION
1099.36,Royal Mail Group Ltd,Transformation,Bsu,Central Mail,4871,Postages,12/02/2018,Supplies & Services,82630,Transformation,TRANSFORMATION
1098,A R Signs Ltd,Finance & Corporate Services,"Performance, Repn & Comms",Performance And Reputation,4710,External Printing,05/01/2018,Supplies & Services,81824,Finance & Corporate Services,FINANCE & CORPORATE SERVICES
1089,Jne Security Ltd,Neighbourhoods,Environmental Health,Community Safety,1598,Projects & Activities,11/01/2018,Supplies & Services,81617,Neighbourhoods,NEIGHBOURHOODS
1083.15,Pirtek (Nottingham) Do Not Use,Neighbourhoods,Waste & Fleet Management,Fleet,8600,Tachograph Analysis,05/01/2018,Transport Related Expenditure,81744,Neighbourhoods,NEIGHBOURHOODS
1080,Nottinghamshire County Council,Communities,Local Development Framework,Land Charges,1033,Other Services,20/03/2018,Supplies & Services,82969,Communities,COMMUNITIES
1062.5,Badenoch & Clark,Finance & Corporate Services,Financial Services,Financial Services,4705,Agency Staff,09/02/2018,Employee Related Expenditure,82948,Finance & Corporate Services,FINANCE & CORPORATE SERVICES
1050,Senitor Recruitment,Transformation,Ict,It,4703,Agency Staff,25/01/2018,Employee Related Expenditure,82049,Transformation,TRANSFORMATION
1047.43,Vodafone Limited,Transformation,Ict,It Rechargeable Costs,4722,Maintenance Contracts - S&S,16/02/2018,Supplies & Services,75801,Transformation,TRANSFORMATION
1047.1,Calor Gas Limited,Communities,Community Development,West Park,8994,Gas,19/01/2018,Premises Related Expenditure,82452,Communities,COMMUNITIES
1045,Advanced Business Solutions,Capital Expenditure,Transformation & Innovation,Collaborative Planning,609,Software,16/02/2018,Supplies & Services,82877,Capital Expenditure,CAPITAL
1042.1,Print Image Network Ltd,Rechargeable Accounts,Elections Rechargeable,Parish Election,7100,External Printing,05/01/2018,Supplies & Services,81778,Rechargeable Accounts,FINANCE & CORPORATE SERVICES
1042.1,Print Image Network Ltd,Rechargeable Accounts,Elections Rechargeable,Parish Election,7100,External Printing,19/01/2018,Supplies & Services,82362,Rechargeable Accounts,FINANCE & CORPORATE SERVICES
1040,Gail Dandy Catering,Communities,Community Development,Community Development,1581,Other Miscellaneous Expenses,11/01/2018,Supplies & Services,81775,Communities,COMMUNITIES
1040,South Notts Fabrications Ltd,Transformation,Property Services,Land Holdings,1884,Planned Maintenance Recharge,05/01/2018,Supplies & Services,81822,Transformation,TRANSFORMATION
1039.08,Frontline Recruitment Ltd,Neighbourhoods,Waste & Fleet Management,Waste Collection,8403,Agency Staff,19/01/2018,Employee Related Expenditure,82368,Neighbourhoods,NEIGHBOURHOODS
1039,Dotted Eyes Ltd,Communities,Local Development Framework,Development Plans,1232,Legal & Professional Services,21/03/2018,Supplies & Services,84013,Communities,COMMUNITIES
1036.11,Royal Mail Group Ltd,Transformation,Bsu,Central Mail,4871,Postages,27/03/2018,Supplies & Services,84239,Transformation,TRANSFORMATION
1036.11,Royal Mail Group Ltd,Transformation,Bsu,Central Mail,4871,Postages,27/03/2018,Supplies & Services,84252,Transformation,TRANSFORMATION
1032.53,Royal Mail Group Ltd,Transformation,Bsu,Central Mail,4871,Postages,12/02/2018,Supplies & Services,82475,Transformation,TRANSFORMATION
1030,Socitm Limited,Transformation,Ict,It,4703,Subscriptions,07/02/2018,Supplies & Services,82694,Transformation,TRANSFORMATION
1025,Campbell Associates,Neighbourhoods,Environmental Health,Noise Control,1060,Other Maintenance,27/03/2018,Supplies & Services,84242,Neighbourhoods,NEIGHBOURHOODS
1023.62,Complete Mailings,Finance & Corporate Services,"Performance, Repn & Comms",Performance And Reputation,4710,External Printing,16/02/2018,Supplies & Services,82930,Finance & Corporate Services,FINANCE & CORPORATE SERVICES
1021.92,Xerox (Uk) Limited,Transformation,Ict,Photocopiers,5017,Rental & Copy Charges,31/01/2018,Supplies & Services,82637,Transformation,TRANSFORMATION
1009.8,The Hr Lounge,Finance & Corporate Services,Emt & Transformation,Executive Management Team,4721,Training Expenses,27/03/2018,Employee Related Expenditure,83138,Finance & Corporate Services,FINANCE & CORPORATE SERVICES
1001,Havas People Ltd,Finance & Corporate Services,Legal,Legal Services,4701,Training Expenses,05/01/2018,Employee Related Expenditure,78531,Finance & Corporate Services,FINANCE & CORPORATE SERVICES
1000.4,British Gas Business,Communities,Community Development,Gresham,8950,Electricity,05/01/2018,Premises Related Expenditure,81781,Communities,COMMUNITIES
1000,Trent Bridge Community Trust,Communities,Community Development,Young,1048,Other Miscellaneous Expenses,27/03/2018,Supplies & Services,84419,Communities,COMMUNITIES
1000,Friary Drop In,Finance & Corporate Services,Democratic Services,Members Services,1000,Grants,27/03/2018,Supplies & Services,84208,Finance & Corporate Services,FINANCE & CORPORATE SERVICES
1000,W Bridgford Allotment Holders,Finance & Corporate Services,Democratic Services,Members Services,1000,Grants,20/03/2018,Supplies & Services,83732,Finance & Corporate Services,FINANCE & CORPORATE SERVICES
1000,Nottingham City Council,Transformation,Human Resources,Corporate Training,4893,Training Expenses,27/03/2018,Employee Related Expenditure,83695,Transformation,TRANSFORMATION
1000,Software Box Ltd,Transformation,Ict,It Rechargeable Costs,4722,Other Maintenance,07/02/2018,Supplies & Services,81230,Transformation,TRANSFORMATION
999.12,Newark Advertiser Co Ltd,Communities,Planning & Growth,Development Control,1161,Legal & Professional Services,05/01/2018,Supplies & Services,81495,Communities,COMMUNITIES
993,Medigold Health Consultancy Ltd,Transformation,Human Resources,Human Resources,4709,Legal & Professional Services,31/01/2018,Supplies & Services,82424,Transformation,TRANSFORMATION
990,Kingkraft,Capital Expenditure,Neighbourhoods,Disabled Facilities Grant,332,Grants,15/03/2018,Supplies & Services,83754,Capital Expenditure,CAPITAL
975,Fisher Hargreaves Proctor,Capital Expenditure,Transformation & Innovation,Cotgrave Employment Land,371,Legal & Professional Services,23/02/2018,Supplies & Services,82721,Capital Expenditure,CAPITAL
962.88,Water Plus,Neighbourhoods,Leisure Contracts & Car Parks,Car Parks,1900,Water Charges,07/02/2018,Premises Related Expenditure,82478,Neighbourhoods,FINANCE & CORPORATE SERVICES
961.28,British Gas Business,Communities,Community Development,Gresham,8950,Electricity,23/02/2018,Premises Related Expenditure,83420,Communities,COMMUNITIES
960,Parkwood Community Leisure,Transformation,Bsu,Business Support Unit,4805,Legal & Professional Services,16/02/2018,Supplies & Services,82795,Transformation,TRANSFORMATION
950,Dta Electrical,Neighbourhoods,Waste & Fleet Management,Depot,4001,Responsive Works - Buildings,31/01/2018,Premises Related Expenditure,82457,Neighbourhoods,NEIGHBOURHOODS
947.93,Temperature Control Limited,Transformation,Property Services,Arena Civic Centre,4718,Responsive Works - Buildings,16/02/2018,Premises Related Expenditure,82845,Transformation,TRANSFORMATION
934,A R Signs Ltd,Finance & Corporate Services,"Performance, Repn & Comms",Performance And Reputation,4710,External Printing,16/02/2018,Supplies & Services,82831,Finance & Corporate Services,FINANCE & CORPORATE SERVICES
931.5,Freeth Cartwright Llp,Capital Expenditure,Transformation & Innovation,Bridgford Hall Refurbishment,382,Legal & Professional Services,23/02/2018,Supplies & Services,83034,Capital Expenditure,CAPITAL
917.27,Water Plus,Neighbourhoods,Waste & Fleet Management,Depot,4001,Water Charges,06/03/2018,Premises Related Expenditure,83651,Neighbourhoods,NEIGHBOURHOODS
900.86,Havas People Ltd,Neighbourhoods,Waste & Fleet Management,Waste Collection,8403,Employee Advertising,31/01/2018,Employee Related Expenditure,82465,Neighbourhoods,NEIGHBOURHOODS
898.71,Parkwood Leisure Ltd,Neighbourhoods,Leisure Contracts & Car Parks,Leisure Management Contract,1795,Responsive Works - Buildings,01/03/2018,Premises Related Expenditure,83220,Neighbourhoods,FINANCE & CORPORATE SERVICES
895.04,Eon,Transformation,Property Services,New Units At Cotgrave,1892,Electricity,16/02/2018,Premises Related Expenditure,82151,Transformation,TRANSFORMATION
885.86,Havas People Ltd,Transformation,Customer Services,Customer Services,4807,Employee Advertising,01/03/2018,Employee Related Expenditure,83388,Transformation,TRANSFORMATION
882.44,British Gas Business,Communities,Community Development,Gresham,8950,Electricity,07/02/2018,Premises Related Expenditure,82438,Communities,COMMUNITIES
879.84,Senitor Recruitment,Transformation,Ict,It,4703,Agency Staff,25/01/2018,Employee Related Expenditure,82444,Transformation,TRANSFORMATION
878.61,Arden Winch & Co Ltd,Neighbourhoods,Waste & Fleet Management,Waste Collection,8403,Protective Clothing/Uniforms,27/03/2018,Supplies & Services,84056,Neighbourhoods,NEIGHBOURHOODS
875.31,Arden Winch & Co Ltd,Neighbourhoods,Waste & Fleet Management,Waste Collection,8403,Protective Clothing/Uniforms,11/01/2018,Supplies & Services,81514,Neighbourhoods,NEIGHBOURHOODS
870.83,Commodore (Nottingham) Ltd,Neighbourhoods,Strategic Housing,Homeless B&B,1110,Housing-Emergency Accommodn,06/03/2018,Supplies & Services,83636,Neighbourhoods,NEIGHBOURHOODS
870.27,Corona Energy Retail 3 Ltd,Neighbourhoods,Waste & Fleet Management,Depot,4001,Gas,23/02/2018,Premises Related Expenditure,83410,Neighbourhoods,NEIGHBOURHOODS
867,Crimson Fire Risk Services Ltd,Transformation,Property Services,Arena Civic Centre,4718,Service Maintenance Contracts,15/03/2018,Premises Related Expenditure,83715,Transformation,TRANSFORMATION
866.4,Browne Jacobson,Transformation,Property Services,Land Holdings,1884,Legal & Professional Services,05/01/2018,Supplies & Services,81651,Transformation,TRANSFORMATION
864.9,Carl Dean Associates Limited,Capital Expenditure,Transformation & Innovation,Multi Service Centre,348,Legal & Professional Services,05/01/2018,Supplies & Services,81795,Capital Expenditure,CAPITAL
864.9,Carl Dean Associates Limited,Capital Expenditure,Transformation & Innovation,Multi Service Centre,348,Legal & Professional Services,16/02/2018,Supplies & Services,82685,Capital Expenditure,CAPITAL
864.9,Carl Dean Associates Limited,Capital Expenditure,Transformation & Innovation,Multi Service Centre,348,Legal & Professional Services,21/03/2018,Supplies & Services,83594,Capital Expenditure,CAPITAL
860.59,Maltby & Company,Neighbourhoods,Leisure Contracts & Car Parks,Leisure Management Contract,1795,Responsive Works - Buildings,27/03/2018,Premises Related Expenditure,83980,Neighbourhoods,FINANCE & CORPORATE SERVICES
853.83,Bottomline Technologies Limited,Transformation,Ict,It Rechargeable Costs,4722,Maintenance Contracts - S&S,16/02/2018,Supplies & Services,82713,Transformation,TRANSFORMATION
850,Access Doors,Communities,Community Development,Gresham,8950,Planned Maintenance Recharge,31/01/2018,Supplies & Services,82136,Communities,COMMUNITIES
850,Badenoch & Clark,Finance & Corporate Services,Financial Services,Financial Services,4705,Agency Staff,09/02/2018,Employee Related Expenditure,82949,Finance & Corporate Services,FINANCE & CORPORATE SERVICES
850,Badenoch & Clark,Finance & Corporate Services,Financial Services,Financial Services,4705,Agency Staff,09/02/2018,Employee Related Expenditure,82950,Finance & Corporate Services,FINANCE & CORPORATE SERVICES
850,Badenoch & Clark,Finance & Corporate Services,Financial Services,Financial Services,4705,Agency Staff,23/02/2018,Employee Related Expenditure,83257,Finance & Corporate Services,FINANCE & CORPORATE SERVICES
850,Badenoch & Clark,Finance & Corporate Services,Financial Services,Financial Services,4705,Agency Staff,23/02/2018,Employee Related Expenditure,83258,Finance & Corporate Services,FINANCE & CORPORATE SERVICES
850,Badenoch & Clark,Finance & Corporate Services,Financial Services,Financial Services,4705,Agency Staff,23/02/2018,Employee Related Expenditure,83259,Finance & Corporate Services,FINANCE & CORPORATE SERVICES
850,Badenoch & Clark,Finance & Corporate Services,Financial Services,Financial Services,4705,Agency Staff,06/03/2018,Employee Related Expenditure,83497,Finance & Corporate Services,FINANCE & CORPORATE SERVICES
850,Badenoch & Clark,Finance & Corporate Services,Financial Services,Financial Services,4705,Agency Staff,06/03/2018,Employee Related Expenditure,83643,Finance & Corporate Services,FINANCE & CORPORATE SERVICES
848.65,Osborne Richardson,Neighbourhoods,Environmental Health,Food Hygiene,1054,Contractors-Supplies & Servs,06/03/2018,Supplies & Services,83647,Neighbourhoods,NEIGHBOURHOODS
847.3,Osborne Richardson,Neighbourhoods,Environmental Health,Food Hygiene,1054,Contractors-Supplies & Servs,23/02/2018,Supplies & Services,82680,Neighbourhoods,NEIGHBOURHOODS
846.06,Thomas Bow Ltd,Capital Expenditure,Transformation & Innovation,Cotgrave Masterplan,303,Legal & Professional Services,06/03/2018,Supplies & Services,83254,Capital Expenditure,CAPITAL
842.35,Osborne Richardson,Neighbourhoods,Environmental Health,Food Hygiene,1054,Legal & Professional Services,31/01/2018,Supplies & Services,82494,Neighbourhoods,NEIGHBOURHOODS
832.4,Osborne Richardson,Neighbourhoods,Environmental Health,Food Hygiene,1054,Contractors-Supplies & Servs,27/03/2018,Supplies & Services,84381,Neighbourhoods,NEIGHBOURHOODS
829.25,Osborne Richardson,Neighbourhoods,Environmental Health,Food Hygiene,1054,Contractors-Supplies & Servs,27/03/2018,Supplies & Services,84042,Neighbourhoods,NEIGHBOURHOODS
814.8,Bright Space Solutions Ltd,Finance & Corporate Services,Emt & Transformation,Executive Management Team,4721,Legal & Professional Services,05/01/2018,Supplies & Services,81657,Finance & Corporate Services,FINANCE & CORPORATE SERVICES
811.5,Essentra Comp Ltd,Neighbourhoods,Environmental Health,Hackney Carriage/Private Hire,1031,Other Equipment/Materials,11/01/2018,Supplies & Services,81825,Neighbourhoods,NEIGHBOURHOODS
810,Fred Brown Car Repairs Limited,Neighbourhoods,Environmental Health,Hackney Carriage/Private Hire,1031,Contractors-Transport,09/02/2018,Transport Related Expenditure,82911,Neighbourhoods,NEIGHBOURHOODS
808.9,The Hr Lounge,Transformation,Human Resources,Corporate Training,4893,Training Expenses,25/01/2018,Employee Related Expenditure,82627,Transformation,TRANSFORMATION
807.91,Frontline Recruitment Ltd,Neighbourhoods,Waste & Fleet Management,Waste Collection,8403,Agency Staff,27/03/2018,Employee Related Expenditure,84041,Neighbourhoods,NEIGHBOURHOODS
805,A R Signs Ltd,Finance & Corporate Services,"Performance, Repn & Comms",Performance And Reputation,4710,External Printing,16/02/2018,Supplies & Services,82832,Finance & Corporate Services,FINANCE & CORPORATE SERVICES
802.65,Corona Energy Retail 3 Ltd,Neighbourhoods,Waste & Fleet Management,Depot,4001,Gas,19/01/2018,Premises Related Expenditure,82357,Neighbourhoods,NEIGHBOURHOODS
800,Senior Internet Ltd,Transformation,Ict,It Rechargeable Costs,4722,Maintenance Contracts - S&S,16/02/2018,Supplies & Services,83226,Transformation,TRANSFORMATION
798.24,The South Wolds Academy And Sixth Form,Neighbourhoods,Leisure Contracts & Car Parks,Leisure Management Contract,1795,Electricity,15/03/2018,Premises Related Expenditure,83154,Neighbourhoods,FINANCE & CORPORATE SERVICES
790,Geoffrey Nichols Associates,Transformation,Property Services,Land Holdings,1884,Responsive Works - Buildings,27/03/2018,Premises Related Expenditure,83969,Transformation,TRANSFORMATION
787.64,Water Plus,Communities,Community Development,Gamston Community Hall,8992,Water Charges,05/01/2018,Premises Related Expenditure,81938,Communities,COMMUNITIES
786.9,Osborne Richardson,Neighbourhoods,Environmental Health,Food Hygiene,1054,Contractors-Supplies & Servs,21/03/2018,Supplies & Services,83882,Neighbourhoods,NEIGHBOURHOODS
784,Osborne Richardson,Neighbourhoods,Environmental Health,Food Hygiene,1054,Contractors-Supplies & Servs,27/03/2018,Supplies & Services,84159,Neighbourhoods,NEIGHBOURHOODS
780.75,Havas People Ltd,Neighbourhoods,Environmental Health,Food Hygiene,1054,Employee Advertising,31/01/2018,Employee Related Expenditure,82463,Neighbourhoods,NEIGHBOURHOODS
777,David Parr Limited,Neighbourhoods,Waste & Fleet Management,Depot,4001,Hire Of Transport/Plant,07/02/2018,Transport Related Expenditure,82602,Neighbourhoods,NEIGHBOURHOODS
773.54,British Gas Business,Transformation,Property Services,The Point,1886,Electricity,16/02/2018,Premises Related Expenditure,83083,Transformation,TRANSFORMATION
770,Hopkins Solicitors,Capital Expenditure,Transformation & Innovation,Cotgrave Masterplan,303,Legal & Professional Services,23/02/2018,Supplies & Services,83477,Capital Expenditure,CAPITAL
769.24,Corona Energy Retail 3 Ltd,Neighbourhoods,Waste & Fleet Management,Depot,4001,Gas,21/03/2018,Premises Related Expenditure,84004,Neighbourhoods,NEIGHBOURHOODS
765.88,Frontline Recruitment Ltd,Neighbourhoods,Waste & Fleet Management,Waste Collection,8403,Agency Staff,15/01/2018,Employee Related Expenditure,81686,Neighbourhoods,NEIGHBOURHOODS
762.6,Engineering Services Consultancy Limited,Capital Expenditure,Transformation & Innovation,Multi Service Centre,348,Legal & Professional Services,25/01/2018,Supplies & Services,82134,Capital Expenditure,CAPITAL
762.6,Engineering Services Consultancy Limited,Capital Expenditure,Transformation & Innovation,Multi Service Centre,348,Legal & Professional Services,23/02/2018,Supplies & Services,82924,Capital Expenditure,CAPITAL
762.6,Engineering Services Consultancy Limited,Capital Expenditure,Transformation & Innovation,Multi Service Centre,348,Legal & Professional Services,21/03/2018,Supplies & Services,83768,Capital Expenditure,CAPITAL
760.22,The South Wolds Academy And Sixth Form,Neighbourhoods,Leisure Contracts & Car Parks,Leisure Management Contract,1795,Electricity,07/02/2018,Premises Related Expenditure,81688,Neighbourhoods,FINANCE & CORPORATE SERVICES
756,John A Stephens Ltd,Neighbourhoods,Leisure Contracts & Car Parks,Leisure Management Contract,1795,Responsive Works - Buildings,07/02/2018,Premises Related Expenditure,82445,Neighbourhoods,FINANCE & CORPORATE SERVICES
754.75,Unison,Sals & Wages Deductions A/C,Sals & Wages Deductions A/C,Sals & Wages Deductions A/C,5015,Unison Subscriptions,11/01/2018,Transfers Expenditure,82016,Sals & Wages Deductions A/C,FINANCE & CORPORATE SERVICES
751.5,Unison,Sals & Wages Deductions A/C,Sals & Wages Deductions A/C,Sals & Wages Deductions A/C,5015,Unison Subscriptions,12/02/2018,Transfers Expenditure,82813,Sals & Wages Deductions A/C,FINANCE & CORPORATE SERVICES
750,Total Reclaims Demolition Ltd,Capital Expenditure,Transformation & Innovation,Cotgrave Masterplan,303,Legal & Professional Services,11/01/2018,Supplies & Services,82128,Capital Expenditure,CAPITAL
750,Friends Of Rushcliffe Country Park,Communities,Community Development,Environmental Promotion,1590,Grants,07/03/2018,Supplies & Services,83493,Communities,COMMUNITIES
750,Hex Productions,Finance & Corporate Services,"Performance, Repn & Comms",Performance And Reputation,4710,Legal & Professional Services,11/01/2018,Supplies & Services,80166,Finance & Corporate Services,FINANCE & CORPORATE SERVICES
750,Heb Chartered Surveyors,Transformation,Property Services,Land Holdings,1884,Legal & Professional Services,31/01/2018,Supplies & Services,81807,Transformation,TRANSFORMATION
750,Mr Henry Francis Knibb,Transformation,Property Services,Open Spaces & Footpaths,1290,Grants,19/02/2018,Supplies & Services,82926,Transformation,TRANSFORMATION
745.5,Fisher Hargreaves Proctor,Capital Expenditure,Transformation & Innovation,Cotgrave Employment Land,371,Legal & Professional Services,16/02/2018,Supplies & Services,82723,Capital Expenditure,CAPITAL
745.5,Fisher Hargreaves Proctor,Capital Expenditure,Transformation & Innovation,Cotgrave Employment Land,371,Legal & Professional Services,16/02/2018,Supplies & Services,82725,Capital Expenditure,CAPITAL
745.5,Fisher Hargreaves Proctor,Capital Expenditure,Transformation & Innovation,Cotgrave Employment Land,371,Legal & Professional Services,23/02/2018,Supplies & Services,82722,Capital Expenditure,CAPITAL
745.5,Fisher Hargreaves Proctor,Capital Expenditure,Transformation & Innovation,Cotgrave Employment Land,371,Legal & Professional Services,23/02/2018,Supplies & Services,82726,Capital Expenditure,CAPITAL
745.5,Fisher Hargreaves Proctor,Capital Expenditure,Transformation & Innovation,Cotgrave Employment Land,371,Legal & Professional Services,23/02/2018,Supplies & Services,82727,Capital Expenditure,CAPITAL
745.5,Fisher Hargreaves Proctor,Capital Expenditure,Transformation & Innovation,Cotgrave Employment Land,371,Legal & Professional Services,23/02/2018,Supplies & Services,82728,Capital Expenditure,CAPITAL
745.5,Fisher Hargreaves Proctor,Capital Expenditure,Transformation & Innovation,Cotgrave Employment Land,371,Legal & Professional Services,23/02/2018,Supplies & Services,82729,Capital Expenditure,CAPITAL
738,Local World Ltd,Communities,Planning & Growth,Development Control,1161,Advertising,21/03/2018,Supplies & Services,83704,Communities,COMMUNITIES
729.6,Browne Jacobson,Transformation,Property Services,Land Holdings,1884,Legal & Professional Services,16/02/2018,Supplies & Services,82859,Transformation,TRANSFORMATION
728.5,Unison,Sals & Wages Deductions A/C,Sals & Wages Deductions A/C,Sals & Wages Deductions A/C,5015,Unison Subscriptions,06/03/2018,Transfers Expenditure,83485,Sals & Wages Deductions A/C,FINANCE & CORPORATE SERVICES
721.88,Local World Ltd,Communities,Planning & Growth,Development Control,1161,Advertising,27/03/2018,Supplies & Services,82000,Communities,COMMUNITIES
720.08,Corona Energy Retail 3 Ltd,Neighbourhoods,Waste & Fleet Management,Depot,4001,Gas,15/01/2018,Premises Related Expenditure,81668,Neighbourhoods,NEIGHBOURHOODS
720,Rushcliffe Business Partnership,Communities,Community Development,Community Development,1581,Other Miscellaneous Expenses,16/02/2018,Supplies & Services,82905,Communities,COMMUNITIES
720,Fred Brown Car Repairs Limited,Neighbourhoods,Environmental Health,Hackney Carriage/Private Hire,1031,Contractors-Transport,15/01/2018,Transport Related Expenditure,82124,Neighbourhoods,NEIGHBOURHOODS
720,Fred Brown Car Repairs Limited,Neighbourhoods,Environmental Health,Hackney Carriage/Private Hire,1031,Contractors-Transport,21/03/2018,Transport Related Expenditure,83935,Neighbourhoods,NEIGHBOURHOODS
720,M J Saunders Computer Services Ltd,Transformation,Ict,It Rechargeable Costs,4722,Cabling/Switches,27/03/2018,Supplies & Services,84125,Transformation,TRANSFORMATION
716.25,Daisy Communications Ltd,Transformation,Ict,Telephones,4870,Telephone Rental,15/01/2018,Supplies & Services,79678,Transformation,TRANSFORMATION
715.5,Local World Ltd,Communities,Planning & Growth,Development Control,1161,Advertising,19/01/2018,Supplies & Services,81999,Communities,COMMUNITIES
715,Blachere Illumination Uk Ltd,Transformation,Economic Regeneration,West Bridgford Town Centre,1875,Planned Maintenance Recharge,11/01/2018,Supplies & Services,81958,Transformation,TRANSFORMATION
714.5,Unison,Sals & Wages Deductions A/C,Sals & Wages Deductions A/C,Sals & Wages Deductions A/C,5015,Unison Subscriptions,27/03/2018,Transfers Expenditure,84399,Sals & Wages Deductions A/C,FINANCE & CORPORATE SERVICES
707.42,Arden Winch & Co Ltd,Neighbourhoods,Waste & Fleet Management,Waste Collection,8403,Protective Clothing/Uniforms,16/02/2018,Supplies & Services,82842,Neighbourhoods,NEIGHBOURHOODS
704.35,British Gas Business,Transformation,Property Services,The Point,1886,Electricity,21/03/2018,Premises Related Expenditure,84015,Transformation,TRANSFORMATION
703,Ninesharp Ltd,Transformation,Ict,It,4703,Agency Staff,27/03/2018,Employee Related Expenditure,84072,Transformation,TRANSFORMATION
702.5,David Parr Limited,Neighbourhoods,Waste & Fleet Management,Garage,8700,Contractors-Transport,07/02/2018,Transport Related Expenditure,82601,Neighbourhoods,NEIGHBOURHOODS
702,Local World Ltd,Communities,Planning & Growth,Development Control,1161,Advertising,16/02/2018,Supplies & Services,82920,Communities,COMMUNITIES
695.52,Mick Dutton & Son Limited,Communities,Community Development,Rushcliffe Country Park,1375,Other Equipment/Materials,12/02/2018,Supplies & Services,82731,Communities,COMMUNITIES
695,Maximum Training Solutions Ltd,Finance & Corporate Services,Emt & Transformation,Executive Management Team,4721,Training Expenses,31/01/2018,Employee Related Expenditure,81427,Finance & Corporate Services,FINANCE & CORPORATE SERVICES
695,Maximum Training Solutions Ltd,Finance & Corporate Services,Emt & Transformation,Executive Management Team,4721,Training Expenses,07/02/2018,Employee Related Expenditure,80184,Finance & Corporate Services,FINANCE & CORPORATE SERVICES
690.55,British Gas Business,Transformation,Property Services,The Point,1886,Electricity,19/01/2018,Premises Related Expenditure,82342,Transformation,TRANSFORMATION
690,Senitor Recruitment,Transformation,Ict,It,4703,Agency Staff,16/02/2018,Employee Related Expenditure,82801,Transformation,TRANSFORMATION
684.6,Cotgrave Town Council,Transformation,Economic Regeneration,Cotgrave Precinct,1885,Grounds Maintenance,15/03/2018,Premises Related Expenditure,83634,Transformation,TRANSFORMATION
682,Nla Media Access Limited,Finance & Corporate Services,Legal,Legal Services,4701,Licences,01/03/2018,Supplies & Services,83221,Finance & Corporate Services,FINANCE & CORPORATE SERVICES
672,Broxap Ltd,Communities,Community Development,Environmental Promotion,1590,Other Equipment/Materials,07/03/2018,Supplies & Services,83386,Communities,COMMUNITIES
668.91,Local World Ltd,Communities,Planning & Growth,Development Control,1161,Advertising,16/02/2018,Supplies & Services,82919,Communities,COMMUNITIES
666.86,Tip Europe Limited,Neighbourhoods,Waste & Fleet Management,Garage,8700,Contractors-Transport,11/01/2018,Transport Related Expenditure,81753,Neighbourhoods,NEIGHBOURHOODS
650,The Treecology Team Ltd,Communities,Community Development,Rushcliffe Country Park,1375,Other Equipment/Materials,21/03/2018,Supplies & Services,84121,Communities,COMMUNITIES
650,The Treecology Team Ltd,Communities,Community Development,Rushcliffe Country Park,1375,Other Equipment/Materials,27/03/2018,Supplies & Services,84124,Communities,COMMUNITIES
650,Team Netsol Limited,Finance & Corporate Services,Revenues & Benefits,Housing Benefits Admin.,1140,Software,25/01/2018,Supplies & Services,82168,Finance & Corporate Services,FINANCE & CORPORATE SERVICES
649.85,British Gas Business,Neighbourhoods,Waste & Fleet Management,Depot,4001,Electricity,23/02/2018,Premises Related Expenditure,83412,Neighbourhoods,NEIGHBOURHOODS
644,Thomson Reuters,Neighbourhoods,Environmental Health,Licences - General,1029,Legal & Professional Services,27/03/2018,Supplies & Services,81425,Neighbourhoods,NEIGHBOURHOODS
635.36,Streetwise Environmental Ltd,Communities,Community Development,Gresham,8950,Responsive Works - Buildings,06/03/2018,Premises Related Expenditure,83400,Communities,COMMUNITIES
630,Nuthall Electrical Services Ltd,Neighbourhoods,Waste & Fleet Management,Depot,4001,Responsive Works - Buildings,05/01/2018,Premises Related Expenditure,81756,Neighbourhoods,NEIGHBOURHOODS
628.99,Water Plus,Neighbourhoods,Waste & Fleet Management,Depot,4001,Water Charges,31/01/2018,Premises Related Expenditure,82576,Neighbourhoods,NEIGHBOURHOODS
628,Streetwise Environmental Ltd,Communities,Community Development,Environmental Promotion,1590,Legal & Professional Services,27/03/2018,Supplies & Services,84384,Communities,COMMUNITIES
625,Hex Productions,Finance & Corporate Services,"Performance, Repn & Comms",Performance And Reputation,4710,Legal & Professional Services,16/02/2018,Supplies & Services,83147,Finance & Corporate Services,FINANCE & CORPORATE SERVICES
624,Senitor Recruitment,Transformation,Ict,It,4703,Agency Staff,05/01/2018,Employee Related Expenditure,81643,Transformation,TRANSFORMATION
620.95,Nottinghamshire County Council,Neighbourhoods,Leisure Contracts & Car Parks,Leisure Management Contract,1795,Grounds Maintenance,07/02/2018,Premises Related Expenditure,82046,Neighbourhoods,FINANCE & CORPORATE SERVICES
620.95,Nottinghamshire County Council,Neighbourhoods,Leisure Contracts & Car Parks,Leisure Management Contract,1795,Grounds Maintenance,09/02/2018,Premises Related Expenditure,82922,Neighbourhoods,FINANCE & CORPORATE SERVICES
615,Print Image Network Ltd,Rechargeable Accounts,Elections Rechargeable,Parish Election,7100,External Printing,05/01/2018,Supplies & Services,81779,Rechargeable Accounts,FINANCE & CORPORATE SERVICES
615,Print Image Network Ltd,Rechargeable Accounts,Elections Rechargeable,Parish Election,7100,External Printing,05/01/2018,Supplies & Services,81780,Rechargeable Accounts,FINANCE & CORPORATE SERVICES
613.47,British Gas Business,Neighbourhoods,Waste & Fleet Management,Depot,4001,Gas,15/01/2018,Premises Related Expenditure,82037,Neighbourhoods,NEIGHBOURHOODS
607.5,Local World Ltd,Communities,Planning & Growth,Development Control,1161,Advertising,16/02/2018,Supplies & Services,82917,Communities,COMMUNITIES
600.31,County Supplies,Communities,Community Development,Facilities Team,4714,Cleaning Equipment/Materials,12/02/2018,Supplies & Services,82171,Communities,COMMUNITIES
600,Ashfield District Council,Communities,Community Development,Community Development,1581,Legal & Professional Services,15/01/2018,Supplies & Services,82152,Communities,COMMUNITIES
600,Ropewalk Chambers,Communities,Planning & Growth,Development Control,1161,Legal & Professional Services,21/03/2018,Supplies & Services,83698,Communities,COMMUNITIES
600,Howard Ward Associates Ltd,Neighbourhoods,Leisure Contracts & Car Parks,Leisure Management Contract,1795,Responsive Works - Buildings,27/03/2018,Premises Related Expenditure,84062,Neighbourhoods,FINANCE & CORPORATE SERVICES
600,Safetynet Solutions Ltd,Transformation,Ict,It Rechargeable Costs,4722,Maintenance Contracts - S&S,23/02/2018,Supplies & Services,81968,Transformation,TRANSFORMATION
600,Howard Ward Associates Ltd,Transformation,Property Services,Land Holdings,1884,Legal & Professional Services,15/03/2018,Supplies & Services,83595,Transformation,TRANSFORMATION
600,Ken Waller,Transformation,Economic Regeneration,West Bridgford Town Centre,1875,Publicity & Promotion,07/02/2018,Supplies & Services,81769,Transformation,TRANSFORMATION
599.66,County Supplies,Communities,Community Development,Facilities Team,4714,Cleaning Equipment/Materials,12/02/2018,Supplies & Services,82695,Communities,COMMUNITIES
599,Total Reclaims Demolition Ltd,Capital Expenditure,Transformation & Innovation,Cotgrave Masterplan,303,Legal & Professional Services,12/02/2018,Supplies & Services,83116,Capital Expenditure,CAPITAL
595,Essentra Comp Ltd,Neighbourhoods,Environmental Health,Hackney Carriage/Private Hire,1031,Other Equipment/Materials,11/01/2018,Supplies & Services,81832,Neighbourhoods,NEIGHBOURHOODS
591,A R Signs Ltd,Finance & Corporate Services,"Performance, Repn & Comms",Performance And Reputation,4710,External Printing,12/02/2018,Supplies & Services,82634,Finance & Corporate Services,FINANCE & CORPORATE SERVICES
587.79,Xerox (Uk) Limited,Transformation,Ict,Photocopiers,5017,Rental & Copy Charges,31/01/2018,Supplies & Services,82632,Transformation,TRANSFORMATION
587.3,Maltby & Company,Transformation,Property Services,Open Spaces & Footpaths,1290,Responsive Works - Buildings,06/03/2018,Premises Related Expenditure,83583,Transformation,TRANSFORMATION
583.87,Platinum Street Lighting Solutions,Neighbourhoods,Leisure Contracts & Car Parks,Car Parks,1900,Planned Maintenance Recharge,07/03/2018,Supplies & Services,83426,Neighbourhoods,FINANCE & CORPORATE SERVICES
581.25,Sf Recruitment Ltd,Finance & Corporate Services,Financial Services,Financial Services,4705,Agency Staff,07/03/2018,Employee Related Expenditure,83263,Finance & Corporate Services,FINANCE & CORPORATE SERVICES
581.25,Sf Recruitment Ltd,Finance & Corporate Services,Financial Services,Financial Services,4705,Agency Staff,27/03/2018,Employee Related Expenditure,84067,Finance & Corporate Services,FINANCE & CORPORATE SERVICES
581.25,Sf Recruitment Ltd,Finance & Corporate Services,Financial Services,Financial Services,4705,Agency Staff,27/03/2018,Employee Related Expenditure,84130,Finance & Corporate Services,FINANCE & CORPORATE SERVICES
581.25,Sf Recruitment Ltd,Finance & Corporate Services,Financial Services,Financial Services,4705,Agency Staff,27/03/2018,Employee Related Expenditure,84231,Finance & Corporate Services,FINANCE & CORPORATE SERVICES
581.25,Sf Recruitment Ltd,Finance & Corporate Services,Financial Services,Financial Services,4705,Agency Staff,27/03/2018,Employee Related Expenditure,84420,Finance & Corporate Services,FINANCE & CORPORATE SERVICES
578.57,Print Image Network Ltd,Finance & Corporate Services,Democratic Services,Electoral Registration,1026,External Printing,23/02/2018,Supplies & Services,83244,Finance & Corporate Services,FINANCE & CORPORATE SERVICES
577.58,Daisy Communications Ltd,Transformation,Ict,Telephones,4870,Telephone Call Charges,01/03/2018,Supplies & Services,76578,Transformation,TRANSFORMATION
576,Maltby & Company,Neighbourhoods,Leisure Contracts & Car Parks,Leisure Management Contract,1795,Planned Maintenance Recharge,06/03/2018,Supplies & Services,83588,Neighbourhoods,FINANCE & CORPORATE SERVICES
575,Commercial Surface Solutions Ltd,Neighbourhoods,Waste & Fleet Management,Depot,4001,Planned Maintenance Recharge,06/03/2018,Supplies & Services,83207,Neighbourhoods,NEIGHBOURHOODS
574,Local World Ltd,Communities,Planning & Growth,Development Control,1161,Advertising,21/03/2018,Supplies & Services,83703,Communities,COMMUNITIES
573.5,Sf Recruitment Ltd,Transformation,Human Resources,Human Resources,4709,Agency Staff,15/03/2018,Employee Related Expenditure,83498,Transformation,TRANSFORMATION
573.33,British Gas Business,Communities,Community Development,Sir Julien Cahn Pavilion,8993,Electricity,07/02/2018,Premises Related Expenditure,82436,Communities,COMMUNITIES
571.98,Maltby & Company,Neighbourhoods,Leisure Contracts & Car Parks,Car Parks,1900,Planned Maintenance Recharge,06/03/2018,Supplies & Services,83581,Neighbourhoods,FINANCE & CORPORATE SERVICES
570,C-Consulting Ltd,Communities,Community Development,Rushcliffe Country Park,1375,Other Equipment/Materials,12/02/2018,Supplies & Services,82897,Communities,COMMUNITIES
570,Saxondale Boarding Kennels,Neighbourhoods,Environmental Health,Dog Control,1057,Legal & Professional Services,23/02/2018,Supplies & Services,83132,Neighbourhoods,NEIGHBOURHOODS
567.99,Adt Fire And Security Plc,Communities,Community Development,Rushcliffe Country Park,1375,Maintenance Contracts - S&S,23/02/2018,Supplies & Services,83403,Communities,COMMUNITIES
567.97,Maltby & Company,Neighbourhoods,Leisure Contracts & Car Parks,Leisure Management Contract,1795,Responsive Works - Buildings,11/01/2018,Premises Related Expenditure,81627,Neighbourhoods,FINANCE & CORPORATE SERVICES
565.75,Sf Recruitment Ltd,Finance & Corporate Services,Financial Services,Financial Services,4705,Agency Staff,23/02/2018,Employee Related Expenditure,83059,Finance & Corporate Services,FINANCE & CORPORATE SERVICES
565,Print Image Network Ltd,Rechargeable Accounts,Elections Rechargeable,Parish Election,7100,External Printing,19/01/2018,Supplies & Services,82360,Rechargeable Accounts,FINANCE & CORPORATE SERVICES
565,Print Image Network Ltd,Rechargeable Accounts,Elections Rechargeable,Parish Election,7100,External Printing,19/01/2018,Supplies & Services,82363,Rechargeable Accounts,FINANCE & CORPORATE SERVICES
562.5,Fisher Hargreaves Proctor,Capital Expenditure,Transformation & Innovation,Cotgrave Employment Land,371,Legal & Professional Services,16/02/2018,Supplies & Services,82724,Capital Expenditure,CAPITAL
560,Access Doors,Transformation,Property Services,"Chapel Lane, Bingham",4799,Responsive Works - Buildings,06/03/2018,Premises Related Expenditure,83383,Transformation,TRANSFORMATION
554,Maltby & Company,Transformation,Property Services,Bridgford Hall,1883,Responsive Works - Buildings,11/01/2018,Premises Related Expenditure,81234,Transformation,TRANSFORMATION
550.7,Eon,Transformation,Property Services,Unit 10 Chapel Lane,4788,Gas,15/03/2018,Premises Related Expenditure,82861,Transformation,NEIGHBOURHOODS
550,Cookson & Son,Neighbourhoods,Waste & Fleet Management,Depot,4001,Service Maintenance Contracts,01/03/2018,Premises Related Expenditure,83589,Neighbourhoods,NEIGHBOURHOODS
550,Blade Runners Commercial Ltd,Transformation,Property Services,Arena Civic Centre,4718,Contract Cleaning,06/03/2018,Premises Related Expenditure,83239,Transformation,TRANSFORMATION
547.25,Corona Energy Retail 3 Ltd,Communities,Community Development,Lutterell Hall,8990,Gas,16/02/2018,Premises Related Expenditure,83216,Communities,COMMUNITIES
547.2,Local World Ltd,Communities,Planning & Growth,Development Control,1161,Advertising,19/01/2018,Supplies & Services,82001,Communities,COMMUNITIES
545.06,Xerox (Uk) Limited,Transformation,Ict,Photocopiers,5017,Rental & Copy Charges,31/01/2018,Supplies & Services,82638,Transformation,TRANSFORMATION
545,Mencap Day Services,Finance & Corporate Services,Democratic Services,Members Services,1000,Grants,11/01/2018,Supplies & Services,82050,Finance & Corporate Services,FINANCE & CORPORATE SERVICES
540,Dta Electrical,Capital Expenditure,Neighbourhoods,Blc Enhancements,417,Contractors-Third Party,11/01/2018,Third Party Payments,81743,Capital Expenditure,CAPITAL
537.9,Bt Telephone Payment Centre,Transformation,Ict,Telephones,4870,Telephone Rental,19/01/2018,Supplies & Services,82118,Transformation,TRANSFORMATION
532.77,Print Image Network Ltd,Finance & Corporate Services,Democratic Services,Electoral Registration,1026,External Printing,11/01/2018,Supplies & Services,82162,Finance & Corporate Services,FINANCE & CORPORATE SERVICES
525,A.T Alarms,Transformation,Property Services,Land Holdings,1884,Service Maintenance Contracts,31/01/2018,Premises Related Expenditure,82453,Transformation,TRANSFORMATION
524.42,Streetwise Environmental Ltd,Transformation,Property Services,Open Spaces & Footpaths,1290,Responsive Works - Buildings,27/03/2018,Premises Related Expenditure,84375,Transformation,TRANSFORMATION
524.23,Water Plus,Communities,Community Development,West Park,8994,Water Charges,05/01/2018,Premises Related Expenditure,81936,Communities,COMMUNITIES
519,Rics Membership Renewals,Transformation,Property Services,Property Services,4713,Professional Subscriptions,19/02/2018,Employee Related Expenditure,82702,Transformation,TRANSFORMATION
518,Apse,Neighbourhoods,Waste & Fleet Management,Waste Collection,8403,Training Expenses,12/02/2018,Employee Related Expenditure,82611,Neighbourhoods,NEIGHBOURHOODS
516.88,Mick Dutton & Son Limited,Communities,Community Development,Rushcliffe Country Park,1375,Other Equipment/Materials,09/02/2018,Supplies & Services,80014,Communities,COMMUNITIES
509,Streetwise Environmental Ltd,Transformation,Property Services,Open Spaces & Footpaths,1290,Responsive Works - Buildings,25/01/2018,Premises Related Expenditure,81492,Transformation,TRANSFORMATION
507.93,Nottinghamshire Fire Safety Ltd,Neighbourhoods,Strategic Housing,Hostel Hound Lodge,1111,Fire Precautions &  Alarms,20/03/2018,Premises Related Expenditure,83496,Neighbourhoods,NEIGHBOURHOODS
507.36,Charterbrae Beds,Neighbourhoods,Strategic Housing,Hostel Hound Lodge,1111,Other Equipment/Materials,25/01/2018,Supplies & Services,82593,Neighbourhoods,NEIGHBOURHOODS
506.93,Print Image Network Ltd,Finance & Corporate Services,Democratic Services,Electoral Registration,1026,External Printing,21/03/2018,Supplies & Services,83942,Finance & Corporate Services,FINANCE & CORPORATE SERVICES
503.47,Streetwise Environmental Ltd,Transformation,Property Services,New Units At Cotgrave,1892,Legal & Professional Services,31/01/2018,Supplies & Services,82139,Transformation,TRANSFORMATION
501.4,Maltby & Company,Transformation,Property Services,Bridgford Hall,1883,Responsive Works - Buildings,11/01/2018,Premises Related Expenditure,81235,Transformation,TRANSFORMATION
500,Mallard Consultancy Ltd,Neighbourhoods,Environmental Health,Public Health,1127,Legal & Professional Services,25/01/2018,Supplies & Services,82481,Neighbourhoods,NEIGHBOURHOODS
500,Maltby & Company,Transformation,Property Services,Open Spaces & Footpaths,1290,Planned Maintenance Recharge,06/03/2018,Supplies & Services,83588,Transformation,TRANSFORMATION
495,Alfred Bagnall & Sons (East Midlands) Ltd,Communities,Community Development,Lutterell Hall,8990,Planned Maintenance Recharge,11/01/2018,Supplies & Services,80414,Communities,COMMUNITIES
492.18,Local World Ltd,Communities,Planning & Growth,Development Control,1161,Advertising,05/01/2018,Supplies & Services,81281,Communities,COMMUNITIES
490,Mallard Consultancy Ltd,Neighbourhoods,Environmental Health,Housing Standards,1129,Legal & Professional Services,25/01/2018,Supplies & Services,82481,Neighbourhoods,NEIGHBOURHOODS
480,Local World Ltd,Communities,Planning & Growth,Development Control,1161,Advertising,21/03/2018,Supplies & Services,83702,Communities,COMMUNITIES
470,Nuthall Electrical Services Ltd,Neighbourhoods,Leisure Contracts & Car Parks,Car Parks,1900,Planned Maintenance Recharge,09/02/2018,Supplies & Services,82965,Neighbourhoods,FINANCE & CORPORATE SERVICES
460,Access Doors,Communities,Community Development,West Park,8994,Service Maintenance Contracts,07/03/2018,Premises Related Expenditure,83714,Communities,COMMUNITIES
459,Clearwater Technology Ltd,Communities,Community Development,Gresham,8950,Planned Maintenance Recharge,27/03/2018,Supplies & Services,81964,Communities,COMMUNITIES
450,Access Doors,Communities,Community Development,Gresham,8950,Responsive Works - Buildings,31/01/2018,Premises Related Expenditure,82136,Communities,COMMUNITIES
450,South Notts Fabrications Ltd,Communities,Community Development,Gresham,8950,Responsive Works - Buildings,11/01/2018,Premises Related Expenditure,80561,Communities,COMMUNITIES
431.4,Killgerm Chemicals Ltd,Neighbourhoods,Environmental Health,Pest Control,1062,Other Equipment/Materials,27/03/2018,Supplies & Services,83954,Neighbourhoods,NEIGHBOURHOODS
430.53,Daisy Communications Ltd,Transformation,Ict,Telephones,4870,Telephone Rental,21/03/2018,Supplies & Services,83948,Transformation,TRANSFORMATION
415.75,Clearwater Technology Ltd,Transformation,Property Services,Arena Civic Centre,4718,Service Maintenance Contracts,27/03/2018,Premises Related Expenditure,84054,Transformation,TRANSFORMATION
408.9,Crimson Fire Risk Services Ltd,Neighbourhoods,Waste & Fleet Management,Depot,4001,Service Maintenance Contracts,23/02/2018,Premises Related Expenditure,82170,Neighbourhoods,NEIGHBOURHOODS
400,Maltby & Company,Communities,Community Development,Bridgford Park,8927,Planned Maintenance Recharge,06/03/2018,Supplies & Services,83588,Communities,COMMUNITIES
370,Lodge Tyre Co.Ltd,Neighbourhoods,Waste & Fleet Management,Tanker Services,1948,Tyres,06/03/2018,Transport Related Expenditure,83459,Neighbourhoods,NEIGHBOURHOODS
364.4,Daisy Communications Ltd,Transformation,Ict,Telephones,4870,Telephone Rental,15/01/2018,Supplies & Services,78852,Transformation,TRANSFORMATION
364.4,Daisy Communications Ltd,Transformation,Ict,Telephones,4870,Telephone Rental,01/03/2018,Supplies & Services,76578,Transformation,TRANSFORMATION
347.5,Clearwater Technology Ltd,Communities,Community Development,Gresham,8950,Service Maintenance Contracts,11/01/2018,Premises Related Expenditure,81315,Communities,COMMUNITIES
347.5,Clearwater Technology Ltd,Communities,Community Development,Gresham,8950,Service Maintenance Contracts,27/03/2018,Premises Related Expenditure,84054,Communities,COMMUNITIES
340,Nuthall Electrical Services Ltd,Transformation,Property Services,Bingham Market Stalls,1880,Responsive Works - Buildings,11/01/2018,Premises Related Expenditure,81613,Transformation,TRANSFORMATION
335,Access Doors,Communities,Community Development,Rushcliffe Country Park,1375,Service Maintenance Contracts,07/03/2018,Premises Related Expenditure,83714,Communities,COMMUNITIES
300,Dta Electrical,Communities,Community Development,Gresham,8950,Planned Maintenance Recharge,31/01/2018,Supplies & Services,82331,Communities,COMMUNITIES
281.25,Local World Ltd,Communities,Planning & Growth,Conservation,1171,Advertising,16/02/2018,Supplies & Services,82914,Communities,COMMUNITIES
281.25,Local World Ltd,Communities,Planning & Growth,Development Control,1161,Advertising,16/02/2018,Supplies & Services,82914,Communities,COMMUNITIES
260,Access Doors,Communities,Community Development,Gresham,8950,Service Maintenance Contracts,07/03/2018,Premises Related Expenditure,83714,Communities,COMMUNITIES
257.81,James Andrews Recruitment Solutions,Neighbourhoods,Environmental Health,Noise Control,1060,Agency Staff,16/02/2018,Employee Related Expenditure,82798,Neighbourhoods,NEIGHBOURHOODS
257.81,James Andrews Recruitment Solutions,Neighbourhoods,Environmental Health,Pollution Control,1050,Agency Staff,16/02/2018,Employee Related Expenditure,82798,Neighbourhoods,NEIGHBOURHOODS
240,Local World Ltd,Communities,Planning & Growth,Conservation,1171,Advertising,21/03/2018,Supplies & Services,83702,Communities,COMMUNITIES
230,Dta Electrical,Neighbourhoods,Waste & Fleet Management,Depot,4001,Planned Maintenance Recharge,31/01/2018,Supplies & Services,82331,Neighbourhoods,NEIGHBOURHOODS
225,Clearwater Technology Ltd,Neighbourhoods,Waste & Fleet Management,Depot,4001,Service Maintenance Contracts,11/01/2018,Premises Related Expenditure,81315,Neighbourhoods,NEIGHBOURHOODS
225,Clearwater Technology Ltd,Neighbourhoods,Waste & Fleet Management,Depot,4001,Service Maintenance Contracts,27/03/2018,Premises Related Expenditure,84054,Neighbourhoods,NEIGHBOURHOODS
225,Maltby & Company,Transformation,Property Services,Land Holdings,1884,Planned Maintenance Recharge,06/03/2018,Supplies & Services,83588,Transformation,TRANSFORMATION
220,Dta Electrical,Communities,Community Development,Rushcliffe Country Park,1375,Planned Maintenance Recharge,31/01/2018,Supplies & Services,82331,Communities,COMMUNITIES
220,Dta Electrical,Communities,Community Development,West Park,8994,Planned Maintenance Recharge,31/01/2018,Supplies & Services,82331,Communities,COMMUNITIES
213.75,Clearwater Technology Ltd,Communities,Community Development,Alford Road,8940,Service Maintenance Contracts,11/01/2018,Premises Related Expenditure,81315,Communities,COMMUNITIES
213.75,Clearwater Technology Ltd,Communities,Community Development,Alford Road,8940,Service Maintenance Contracts,27/03/2018,Premises Related Expenditure,84054,Communities,COMMUNITIES
213.75,Clearwater Technology Ltd,Neighbourhoods,Strategic Housing,Hostel Hound Lodge,1111,Service Maintenance Contracts,11/01/2018,Premises Related Expenditure,81315,Neighbourhoods,NEIGHBOURHOODS
213.75,Clearwater Technology Ltd,Neighbourhoods,Strategic Housing,Hostel Hound Lodge,1111,Service Maintenance Contracts,27/03/2018,Premises Related Expenditure,84054,Neighbourhoods,NEIGHBOURHOODS
200,Maltby & Company,Communities,Community Development,West Park,8994,Planned Maintenance Recharge,06/03/2018,Supplies & Services,83588,Communities,COMMUNITIES
200,Nuthall Electrical Services Ltd,Transformation,Property Services,Arena Civic Centre,4718,Responsive Works - Buildings,11/01/2018,Premises Related Expenditure,81613,Transformation,TRANSFORMATION
196,Maltby & Company,Communities,Community Development,Gresham,8950,Planned Maintenance Recharge,06/03/2018,Supplies & Services,83588,Communities,COMMUNITIES
195,Lodge Tyre Co.Ltd,Neighbourhoods,Waste & Fleet Management,Tanker Services,1948,Tyres,16/02/2018,Transport Related Expenditure,82912,Neighbourhoods,NEIGHBOURHOODS
191.25,Clearwater Technology Ltd,Communities,Community Development,West Park,8994,Service Maintenance Contracts,11/01/2018,Premises Related Expenditure,81315,Communities,COMMUNITIES
191.25,Clearwater Technology Ltd,Communities,Community Development,West Park,8994,Service Maintenance Contracts,27/03/2018,Premises Related Expenditure,84054,Communities,COMMUNITIES
190,Crimson Fire Risk Services Ltd,Communities,Community Development,West Park,8994,Service Maintenance Contracts,23/02/2018,Premises Related Expenditure,82170,Communities,COMMUNITIES
175,Dta Electrical,Communities,Community Development,Gamston Community Hall,8992,Planned Maintenance Recharge,31/01/2018,Supplies & Services,82331,Communities,COMMUNITIES
175,Dta Electrical,Communities,Community Development,Lutterell Hall,8990,Planned Maintenance Recharge,31/01/2018,Supplies & Services,82331,Communities,COMMUNITIES
172.3,Daisy Communications Ltd,Transformation,Ict,Telephones,4870,Telephone Call Charges,15/01/2018,Supplies & Services,78852,Transformation,TRANSFORMATION
170,Lodge Tyre Co.Ltd,Neighbourhoods,Waste & Fleet Management,Depot,4001,Tyres,16/02/2018,Transport Related Expenditure,82912,Neighbourhoods,NEIGHBOURHOODS
169.6,Killgerm Chemicals Ltd,Neighbourhoods,Environmental Health,Pest Control,1062,Protective Clothing/Uniforms,27/03/2018,Supplies & Services,83954,Neighbourhoods,NEIGHBOURHOODS
165,Nuthall Electrical Services Ltd,Transformation,Property Services,Land Holdings,1884,Planned Maintenance Recharge,09/02/2018,Supplies & Services,82965,Transformation,TRANSFORMATION
164,Local World Ltd,Communities,Planning & Growth,Conservation,1171,Advertising,21/03/2018,Supplies & Services,83703,Communities,COMMUNITIES
150,Maltby & Company,Communities,Community Development,Gamston Community Hall,8992,Planned Maintenance Recharge,06/03/2018,Supplies & Services,83588,Communities,COMMUNITIES
146.75,Clearwater Technology Ltd,Communities,Community Development,Lutterell Hall,8990,Service Maintenance Contracts,11/01/2018,Premises Related Expenditure,81315,Communities,COMMUNITIES
146.75,Clearwater Technology Ltd,Communities,Community Development,Lutterell Hall,8990,Service Maintenance Contracts,27/03/2018,Premises Related Expenditure,84054,Communities,COMMUNITIES
140.62,Local World Ltd,Communities,Planning & Growth,Conservation,1171,Advertising,05/01/2018,Supplies & Services,81281,Communities,COMMUNITIES
136.8,Local World Ltd,Communities,Planning & Growth,Conservation,1171,Advertising,19/01/2018,Supplies & Services,82001,Communities,COMMUNITIES
135,Access Doors,Communities,Community Development,Alford Road,8940,Service Maintenance Contracts,07/03/2018,Premises Related Expenditure,83714,Communities,COMMUNITIES
135,Clearwater Technology Ltd,Communities,Community Development,Rushcliffe Country Park,1375,Service Maintenance Contracts,11/01/2018,Premises Related Expenditure,81315,Communities,COMMUNITIES
135,Clearwater Technology Ltd,Communities,Community Development,Rushcliffe Country Park,1375,Service Maintenance Contracts,27/03/2018,Premises Related Expenditure,84054,Communities,COMMUNITIES
125,Maltby & Company,Communities,Community Development,Alford Road,8940,Planned Maintenance Recharge,06/03/2018,Supplies & Services,83588,Communities,COMMUNITIES
125,Maltby & Company,Neighbourhoods,Waste & Fleet Management,Depot,4001,Planned Maintenance Recharge,06/03/2018,Supplies & Services,83588,Neighbourhoods,NEIGHBOURHOODS
123.82,Daisy Communications Ltd,Transformation,Ict,Telephones,4870,Telephone Call Charges,15/01/2018,Supplies & Services,79678,Transformation,TRANSFORMATION
123.75,Clearwater Technology Ltd,Communities,Community Development,Sir Julien Cahn Pavilion,8993,Service Maintenance Contracts,11/01/2018,Premises Related Expenditure,81315,Communities,COMMUNITIES
123.75,Clearwater Technology Ltd,Communities,Community Development,Sir Julien Cahn Pavilion,8993,Service Maintenance Contracts,27/03/2018,Premises Related Expenditure,84054,Communities,COMMUNITIES
116,Mick Dutton & Son Limited,Communities,Community Development,Rushcliffe Country Park,1375,Protective Clothing/Uniforms,09/02/2018,Supplies & Services,80014,Communities,COMMUNITIES
112.5,Clearwater Technology Ltd,Communities,Community Development,Gamston Community Hall,8992,Service Maintenance Contracts,11/01/2018,Premises Related Expenditure,81315,Communities,COMMUNITIES
112.5,Clearwater Technology Ltd,Communities,Community Development,Gamston Community Hall,8992,Service Maintenance Contracts,27/03/2018,Premises Related Expenditure,84054,Communities,COMMUNITIES
112.5,Lodge Tyre Co.Ltd,Neighbourhoods,Waste & Fleet Management,Depot,4001,Tyres,11/01/2018,Transport Related Expenditure,82122,Neighbourhoods,NEIGHBOURHOODS
110,South Notts Fabrications Ltd,Communities,Community Development,Alford Road,8940,Responsive Works - Buildings,11/01/2018,Premises Related Expenditure,80561,Communities,COMMUNITIES
110,Access Doors,Communities,Community Development,Lutterell Hall,8990,Service Maintenance Contracts,07/03/2018,Premises Related Expenditure,83714,Communities,COMMUNITIES
110,Maltby & Company,Communities,Community Development,Rushcliffe Country Park,1375,Planned Maintenance Recharge,06/03/2018,Supplies & Services,83588,Communities,COMMUNITIES
108,Clearwater Technology Ltd,Transformation,Property Services,Arena Civic Centre,4718,Planned Maintenance Recharge,27/03/2018,Supplies & Services,81964,Transformation,TRANSFORMATION
100.65,Maltby & Company,Transformation,Property Services,Bingham Market Stalls,1880,Planned Maintenance Recharge,06/03/2018,Supplies & Services,83588,Transformation,TRANSFORMATION
100,Dta Electrical,Communities,Community Development,Sir Julien Cahn Pavilion,8993,Planned Maintenance Recharge,31/01/2018,Supplies & Services,82331,Communities,COMMUNITIES
95,Crimson Fire Risk Services Ltd,Communities,Community Development,Alford Road,8940,Service Maintenance Contracts,23/02/2018,Premises Related Expenditure,82170,Communities,COMMUNITIES
95,Crimson Fire Risk Services Ltd,Communities,Community Development,Gamston Community Hall,8992,Service Maintenance Contracts,23/02/2018,Premises Related Expenditure,82170,Communities,COMMUNITIES
95,Crimson Fire Risk Services Ltd,Communities,Community Development,Gresham,8950,Service Maintenance Contracts,23/02/2018,Premises Related Expenditure,82170,Communities,COMMUNITIES
95,Crimson Fire Risk Services Ltd,Communities,Community Development,Lutterell Hall,8990,Service Maintenance Contracts,23/02/2018,Premises Related Expenditure,82170,Communities,COMMUNITIES
95,Crimson Fire Risk Services Ltd,Communities,Community Development,Sir Julien Cahn Pavilion,8993,Service Maintenance Contracts,23/02/2018,Premises Related Expenditure,82170,Communities,COMMUNITIES
90,Lodge Tyre Co.Ltd,Neighbourhoods,Waste & Fleet Management,Depot,4001,Tyres,11/01/2018,Transport Related Expenditure,82121,Neighbourhoods,NEIGHBOURHOODS
87.75,Clearwater Technology Ltd,Communities,Community Development,West Park,8994,Planned Maintenance Recharge,27/03/2018,Supplies & Services,81964,Communities,COMMUNITIES
85,Access Doors,Communities,Community Development,Sir Julien Cahn Pavilion,8993,Service Maintenance Contracts,07/03/2018,Premises Related Expenditure,83714,Communities,COMMUNITIES
84.77,Daisy Communications Ltd,Transformation,Ict,Telephones,4870,Telephone Call Charges,21/03/2018,Supplies & Services,83948,Transformation,TRANSFORMATION
83.5,Lodge Tyre Co.Ltd,Neighbourhoods,Waste & Fleet Management,Tanker Services,1948,Tyres,11/01/2018,Transport Related Expenditure,82121,Neighbourhoods,NEIGHBOURHOODS
75,Nuthall Electrical Services Ltd,Communities,Community Development,Gamston Community Hall,8992,Responsive Works - Buildings,11/01/2018,Premises Related Expenditure,81613,Communities,COMMUNITIES
74.25,Clearwater Technology Ltd,Communities,Community Development,Alford Road,8940,Planned Maintenance Recharge,27/03/2018,Supplies & Services,81964,Communities,COMMUNITIES
65.62,Local World Ltd,Communities,Planning & Growth,Conservation,1171,Advertising,27/03/2018,Supplies & Services,82000,Communities,COMMUNITIES
64.59,Local World Ltd,Communities,Planning & Growth,Conservation,1171,Advertising,16/02/2018,Supplies & Services,82919,Communities,COMMUNITIES
60.75,Clearwater Technology Ltd,Neighbourhoods,Strategic Housing,Hostel Hound Lodge,1111,Planned Maintenance Recharge,27/03/2018,Supplies & Services,81964,Neighbourhoods,NEIGHBOURHOODS
60,Access Doors,Communities,Community Development,Gamston Community Hall,8992,Service Maintenance Contracts,07/03/2018,Premises Related Expenditure,83714,Communities,COMMUNITIES
60,Access Doors,Transformation,Property Services,The Point,1886,Service Maintenance Contracts,07/03/2018,Premises Related Expenditure,83714,Transformation,TRANSFORMATION
57,Lodge Tyre Co.Ltd,Neighbourhoods,Environmental Health,Pest Control,1062,Tyres,21/03/2018,Transport Related Expenditure,84047,Neighbourhoods,NEIGHBOURHOODS
54,Clearwater Technology Ltd,Communities,Community Development,Rushcliffe Country Park,1375,Planned Maintenance Recharge,27/03/2018,Supplies & Services,81964,Communities,COMMUNITIES
47.9,Edenred,Transformation,Human Resources,Human Resources,4709,Flexible Benefits,15/01/2018,Employee Related Expenditure,82185,Transformation,TRANSFORMATION
47.9,Edenred,Transformation,Human Resources,Human Resources,4709,Flexible Benefits,06/03/2018,Employee Related Expenditure,83202,Transformation,TRANSFORMATION
47.5,Lodge Tyre Co.Ltd,Neighbourhoods,Waste & Fleet Management,Glass Recycling & Bring Sites,8407,Tyres,21/03/2018,Transport Related Expenditure,84047,Neighbourhoods,NEIGHBOURHOODS
35,Lodge Tyre Co.Ltd,Neighbourhoods,Waste & Fleet Management,Depot,4001,Tyres,06/03/2018,Transport Related Expenditure,83459,Neighbourhoods,NEIGHBOURHOODS
30,Lodge Tyre Co.Ltd,Neighbourhoods,Waste & Fleet Management,Depot,4001,Tyres,21/03/2018,Transport Related Expenditure,84047,Neighbourhoods,NEIGHBOURHOODS
20,Lodge Tyre Co.Ltd,Neighbourhoods,Waste & Fleet Management,Glass Recycling & Bring Sites,8407,Tyres,16/02/2018,Transport Related Expenditure,82912,Neighbourhoods,NEIGHBOURHOODS
5.3,Bt Telephone Payment Centre,Transformation,Ict,Telephones,4870,Telephone Call Charges,19/01/2018,Supplies & Services,82118,Transformation,TRANSFORMATION
